Workbook

Sheet Result list
A1: CXO or Top Mgmt. | D1: ="Number of respondents = "&IFERROR(VLOOKUP(A1,'Number of respondents'!$A$2:$B$11,2,FALSE),'Number of respondents'!B12)&" of 1 883 ("&ROUND(IFERROR(VLOOKUP(A1,'Number of respondents'!$A$2:$B$11,2,FALSE),'Number of respondents'!B12)/'Number of respondents'!B12*100,0)&"%)" -> Number of respondents = 75 of 1 883 (4%)
A16: Republica Dominicana | D16: ="Number of respondents = "&VLOOKUP(A16,'Number of respondents'!$E$2:$F$108,2,FALSE)&" of 1 883 ("&ROUND(VLOOKUP(A16,'Number of respondents'!$E$2:$F$108,2,FALSE)/'Number of respondents'!B12*100,0)&"%)" -> Number of respondents = 1 of 1 883 (0%)
A62: Job Type | B62: clean Country | C62: Min of Salary in USD | D62: Max of Salary in USD | E62: Average of Salary in USD
A63: Accountant | B63: Australia | C63: 64254.30835 | D63: 132588.2553 | E63: 92811.77873 | AF63: Analyst | AG63: malaysia | AH63: 30000 | AI63: 30000 | AJ63: 30000
A64: Accountant | B64: Bermuda | C64: 78000 | D64: 78000 | E64: 78000 | AF64: Analyst | AG64: Mexico | AH64: 10956.98289 | AI64: 50000 | AJ64: 24471.24572
A65: Accountant | B65: Canada | C65: 131770.4441 | D65: 1229201.904 | E65: 680486.1739 | AF65: Analyst | AG65: Mongolia | AH65: 7261.72466 | AI65: 7261.72466 | AJ65: 7261.72466
A66: Accountant | B66: china | C66: 15092.18021 | D66: 15092.18021 | E66: 15092.18021 | AF66: Analyst | AG66: MYS | AH66: 12000 | AI66: 12000 | AJ66: 12000
A67: Accountant | B67: Dubai | C67: 9146.565546 | D67: 33500 | E67: 23289.49561 | AF67: Analyst | AG67: Netherlands | AH67: 36206.38401 | AI67: 95279.95792 | AJ67: 62090.77258
A68: Accountant | B68: India | C68: 2136.950002 | D68: 71231.66675 | E68: 10766.88189 | AF68: Analyst | AG68: New Zealand | AH68: 40000 | AI68: 63807.04749 | AJ68: 53990.22689
A69: Accountant | B69: iran | C69: 30000 | D69: 30000 | E69: 30000 | AF69: Analyst | AG69: Nigeria | AH69: 18987 | AI69: 18987 | AJ69: 18987
A70: Accountant | B70: italy | C70: 63519.97195 | D70: 63519.97195 | E70: 63519.97195 | AF70: Analyst | AG70: Norway | AH70: 67700.45258 | AI70: 67700.45258 | AJ70: 67700.45258
A71: Accountant | B71: Lesotho | C71: 177600 | D71: 177600 | E71: 177600 | AF71: Analyst | AG71: Pakistan | AH71: 3000 | AI71: 45000 | AJ71: 14887
A72: Accountant | B72: Lithuania | C72: 15000 | D72: 15000 | E72: 15000 | AF72: Analyst | AG72: Panama | AH72: 26000 | AI72: 26000 | AJ72: 26000
A73: Accountant | B73: Mexico | C73: 15500 | D73: 15500 | E73: 15500 | AF73: Analyst | AG73: Peru | AH73: 15840 | AI73: 15840 | AJ73: 15840
A74: Accountant | B74: Netherlands | C74: 62564.63157 | D74: 62564.63157 | E74: 62564.63157 | AF74: Analyst | AG74: Philippines | AH74: 3982.448779 | AI74: 86000 | AJ74: 44991.22439
A75: Accountant | B75: New Zealand | C75: 59819.10702 | D75: 75770.86889 | E75: 66465.67447 | AF75: Analyst | AG75: Poland | AH75: 18000 | AI75: 19200 | AJ75: 18406.2946
A76: Accountant | B76: Norway | C76: 110000 | D76: 110000 | E76: 110000 | AF76: Analyst | AG76: Portugal | AH76: 26678.38822 | AI76: 26678.38822 | AJ76: 26678.38822
A77: Accountant | B77: Pakistan | C77: 1783.166904 | D77: 12227.4302 | E77: 4633.353712 | AF77: Analyst | AG77: Republica Dominicana | AH77: 15404.36457 | AI77: 15404.36457 | AJ77: 15404.36457
A78: Accountant | B78: Philippines | C78: 19068 | D78: 19068 | E78: 19068 | AF78: Analyst | AG78: Romania | AH78: 7500 | AI78: 7500 | AJ78: 7500
A79: Accountant | B79: Portugal | C79: 21342.71058 | D79: 50815.97756 | E79: 36756.89043 | AF79: Analyst | AG79: Russia | AH79: 35000 | AI79: 100000 | AJ79: 69000
A80: Accountant | B80: Qatar | C80: 49200 | D80: 49200 | E80: 49200 | AF80: Analyst | AG80: Saudi Arabia | AH80: 18000 | AI80: 18000 | AJ80: 18000
A81: Accountant | B81: Romania | C81: 8500 | D81: 8500 | E81: 8500 | AF81: Analyst | AG81: self-employed | AH81: 50000 | AI81: 50000 | AJ81: 50000
A82: Accountant | B82: Saudi Arabia | C82: 23000 | D82: 36500 | E82: 29750 | AF82: Analyst | AG82: Singapore | AH82: 27000 | AI82: 80000 | AJ82: 43550
A83: Accountant | B83: Singapore | C83: 60000 | D83: 60000 | E83: 60000 | AF83: Analyst | AG83: Slovakia | AH83: 13000 | AI83: 13000 | AJ83: 13000
A84: Accountant | B84: South Africa | C84: 29261.22717 | D84: 44654.09572 | E84: 36957.66144 | AF84: Analyst | AG84: Slovenia | AH84: 19055.99158 | AI84: 19055.99158 | AJ84: 19055.99158
A85: Accountant | B85: Sri Lanka | C85: 3000 | D85: 3000 | E85: 3000 | AF85: Analyst | AG85: South Africa | AH85: 9600 | AI85: 109729.6019 | AJ85: 44070.89405
A86: Accountant | B86: Turkey | C86: 36000 | D86: 36000 | E86: 36000 | AF86: Analyst | AG86: Spain | AH86: 19055.99158 | AI86: 47004.77924 | AJ86: 30807.1864
A87: Accountant | B87: UAE | C87: 18000 | D87: 36000 | E87: 27000 | AF87: Analyst | AG87: Switzerland | AH87: 150000 | AI87: 150000 | AJ87: 150000
A88: Accountant | B88: UK | C88: 19000 | D88: 126094.2618 | E88: 55820.30474 | AF88: Analyst | AG88: Tunisia | AH88: 11000 | AI88: 11000 | AJ88: 11000
A89: Accountant | B89: USA | C89: 22880 | D89: 150000 | E89: 64737.19048
A90: Accountant | B90: Viet Nam | C90: 10000 | D90: 10000 | E90: 10000 | AF90: Analyst | AG90: UAE | AH90: 12000 | AI90: 60000 | AJ90: 31677.69953
A91: Accountant | B91: Zambia | C91: 6000 | D91: 20000 | E91: 13000 | AF91: Analyst | AG91: Uganda | AH91: 100000 | AI91: 100000 | AJ91: 100000
A92: Analyst | B92: arabian Gulf | C92: 21000 | D92: 21000 | E92: 21000 | AF92: Analyst | AG92: UK | AH92: 15761.78272 | AI92: 170000 | AJ92: 57469.44941
A93: Analyst | B93: Australia | C93: 20000 | D93: 173384.6416 | E93: 86525.3942 | AF93: Analyst | AG93: Ukraine | AH93: 12000 | AI93: 12000 | AJ93: 12000
A94: Analyst | B94: Baltic | C94: 8400 | D94: 8400 | E94: 8400 | AF94: Analyst | AG94: USA | AH94: 10000 | AI94: 160000 | AJ94: 62583.73737
A95: Analyst | B95: Bangladesh | C95: 3000 | D95: 17598.01729 | E95: 10299.00865 | AF95: Analyst | AG95: Zimbabwe | AH95: 36400 | AI95: 36400 | AJ95: 36400
A96: Analyst | B96: Belgium | C96: 38111.98317 | D96: 49443.94617 | E96: 41889.30417 | AF96: Consultant | AG96: Aruba | AH96: 5000 | AI96: 5000 | AJ96: 5000
A97: Analyst | B97: Bhutan | C97: 4800 | D97: 4800 | E97: 4800 | AF97: Consultant | AG97: Australia | AH97: 71393.67595 | AI97: 173384.6416 | AJ97: 103302.2781
A98: Analyst | B98: Bolivia | C98: 9600 | D98: 9600 | E98: 9600 | AF98: Consultant | AG98: Azerbaijan | AH98: 36000 | AI98: 36000 | AJ98: 36000
A99: Analyst | B99: Brasil | C99: 4545 | D99: 35000 | E99: 19772.5 | AF99: Consultant | AG99: Brazil | AH99: 11400 | AI99: 220700 | AJ99: 116050
A100: Analyst | B100: Brazil | C100: 9490.198404 | D100: 148284.3501 | E100: 34591.32259 | AF100: Consultant | AG100: Cambodia | AH100: 3000 | AI100: 3000 | AJ100: 3000
A101: Analyst | B101: Bulgaria | C101: 14400 | D101: 14400 | E101: 14400 | AF101: Consultant | AG101: Canada | AH101: 55068.24529 | AI101: 157337.8437 | AJ101: 100958.4497
A102: Analyst | B102: Canada | C102: 20000 | D102: 245840.3808 | E102: 63558.64134 | AF102: Consultant | AG102: Denmark | AH102: 20000 | AI102: 20000 | AJ102: 20000
A103: Analyst | B103: china | C103: 19000 | D103: 19000 | E103: 19000 | AF103: Consultant | AG103: Finland | AH103: 60000 | AI103: 60000 | AJ103: 60000
A104: Analyst | B104: Colombia | C104: 6000 | D104: 16110 | E104: 10203.33333 | AF104: Consultant | AG104: France | AH104: 54627.17588 | AI104: 80289.24454 | AJ104: 67458.21021
A105: Analyst | B105: Costa Rica | C105: 28109.62755 | D105: 28109.62755 | E105: 28109.62755 | AF105: Consultant | AG105: Germany | AH105: 53356.77644 | AI105: 90198.36017 | AJ105: 67977.97826
A106: Analyst | B106: Denmark | C106: 106000 | D106: 106000 | E106: 106000 | AF106: Consultant | AG106: India | AH106: 2564.340003 | AI106: 37500 | AJ106: 13928.39597
A107: Analyst | B107: Dubai | C107: 58799.34994 | D107: 58799.34994 | E107: 58799.34994 | AF107: Consultant | AG107: Ireland | AH107: 88927.96073 | AI107: 88927.96073 | AJ107: 88927.96073
A108: Analyst | B108: Egypt | C108: 19831.43282 | D108: 19831.43282 | E108: 19831.43282 | AF108: Consultant | AG108: italy | AH108: 19055.99158 | AI108: 19055.99158 | AJ108: 19055.99158
A109: Analyst | B109: Estonia | C109: 12000 | D109: 12000 | E109: 12000 | AF109: Consultant | AG109: Netherlands | AH109: 38111.98317 | AI109: 38111.98317 | AJ109: 38111.98317
A110: Analyst | B110: Europe | C110: 149907.1338 | D110: 149907.1338 | E110: 149907.1338 | AF110: Consultant | AG110: New Zealand | AH110: 72000 | AI110: 72000 | AJ110: 72000
A111: Analyst | B111: Finland | C111: 89944.28028 | D111: 89944.28028 | E111: 89944.28028 | AF111: Consultant | AG111: Pakistan | AH111: 6368.45323 | AI111: 21228.17743 | AJ111: 12899.15767
A112: Analyst | B112: France | C112: 41923.18149 | D112: 41923.18149 | E112: 41923.18149 | AF112: Consultant | AG112: Poland | AH112: 96000 | AI112: 96000 | AJ112: 96000
A113: Analyst | B113: Germany | C113: 50815.97756 | D113: 100000 | E113: 74545.57812 | AF113: Consultant | AG113: Russia | AH113: 36000 | AI113: 36000 | AJ113: 36000
A114: Analyst | B114: Hong Kong | C114: 20000 | D114: 20000 | E114: 20000 | AF114: Consultant | AG114: Singapore | AH114: 27600 | AI114: 120000 | AJ114: 63900
A115: Analyst | B115: Hungary | C115: 11518.71171 | D115: 11518.71171 | E115: 11518.71171 | AF115: Consultant | AG115: South Africa | AH115: 82000 | AI115: 82000 | AJ115: 82000
A116: Analyst | B116: Iceland | C116: 41731 | D116: 41731 | E116: 41731 | AF116: Consultant | AG116: Spain | AH116: 12000 | AI116: 12000 | AJ116: 12000
A117: Analyst | B117: India | C117: 2136.950002 | D117: 160271.2502 | E117: 11264.71626 | AF117: Consultant | AG117: Sweden | AH117: 68954.52018 | AI117: 68954.52018 | AJ117: 68954.52018
A118: Analyst | B118: Indonesia | C118: 4500 | D118: 15000 | E118: 8245.673595 | AF118: Consultant | AG118: UK | AH118: 31523.56544 | AI118: 126094.2618 | AJ118: 83902.61294
A119: Analyst | B119: iran | C119: 12000 | D119: 12000 | E119: 12000 | AF119: Consultant | AG119: USA | AH119: 12000 | AI119: 250000 | AJ119: 98388.88889
A120: Analyst | B120: Ireland | C120: 44463.98036 | D120: 63519.97195 | E120: 51239.44404 | AF120: Controller | AG120: Australia | AH120: 49975.57316 | AI120: 147886.9002 | AJ120: 82952.65205
A121: Analyst | B121: italy | C121: 24391.66923 | D121: 76223.96634 | E121: 50307.81778 | AF121: Controller | AG121: Brazil | AH121: 15600 | AI121: 15600 | AJ121: 15600
A122: Analyst | B122: Japan | C122: 41000 | D122: 111000 | E122: 67564.77404 | AF122: Controller | AG122: Canada | AH122: 70802.02966 | AI122: 108169.7675 | AJ122: 89485.8986
A123: Analyst | B123: Kuwait | C123: 36000 | D123: 50000 | E123: 43000 | AF123: Controller | AG123: Colombia | AH123: 7200 | AI123: 7200 | AJ123: 7200
A124: Analyst | B124: malaysia | C124: 30000 | D124: 30000 | E124: 30000 | AF124: Controller | AG124: Croatia | AH124: 15000 | AI124: 15000 | AJ124: 15000
A125: Analyst | B125: Mexico | C125: 10956.98289 | D125: 50000 | E125: 24471.24572 | AF125: Controller | AG125: Czech Republic | AH125: 36000 | AI125: 36000 | AJ125: 36000
A126: Analyst | B126: Mongolia | C126: 7261.72466 | D126: 7261.72466 | E126: 7261.72466 | AF126: Controller | AG126: Denmark | AH126: 82888.55506 | AI126: 82888.55506 | AJ126: 82888.55506
A127: Analyst | B127: MYS | C127: 12000 | D127: 12000 | E127: 12000 | AF127: Controller | AG127: Europe | AH127: 114335.9495 | AI127: 228671.899 | AJ127: 171503.9243
A128: Analyst | B128: Netherlands | C128: 36206.38401 | D128: 95279.95792 | E128: 62090.77258 | AF128: Controller | AG128: Germany | AH128: 42558.38121 | AI128: 82575.96353 | AJ128: 60767.43983
A129: Analyst | B129: New Zealand | C129: 40000 | D129: 63807.04749 | E129: 53990.22689 | AF129: Controller | AG129: Hungary | AH129: 35063.02452 | AI129: 35063.02452 | AJ129: 35063.02452
A130: Analyst | B130: Nigeria | C130: 18987 | D130: 18987 | E130: 18987 | AF130: Controller | AG130: India | AH130: 2564.340003 | AI130: 21369.50002 | AJ130: 10468.17715
A131: Analyst | B131: Norway | C131: 67700.45258 | D131: 67700.45258 | E131: 67700.45258 | AF131: Controller | AG131: Indonesia | AH131: 30000 | AI131: 30000 | AJ131: 30000
A132: Analyst | B132: Pakistan | C132: 3000 | D132: 45000 | E132: 14887 | AF132: Controller | AG132: iran | AH132: 12000 | AI132: 12000 | AJ132: 12000
A133: Analyst | B133: Panama | C133: 26000 | D133: 26000 | E133: 26000 | AF133: Controller | AG133: italy | AH133: 30489.58654 | AI133: 30489.58654 | AJ133: 30489.58654
A134: Analyst | B134: Peru | C134: 15840 | D134: 15840 | E134: 15840 | AF134: Controller | AG134: Kuwait | AH134: 15600 | AI134: 15600 | AJ134: 15600
A135: Analyst | B135: Philippines | C135: 3982.448779 | D135: 86000 | E135: 44991.22439 | AF135: Controller | AG135: Morocco | AH135: 13745.70447 | AI135: 13745.70447 | AJ135: 13745.70447
A136: Analyst | B136: Poland | C136: 18000 | D136: 19200 | E136: 18406.2946 | AF136: Controller | AG136: Netherlands | AH136: 63519.97195 | AI136: 78764.76522 | AJ136: 71142.36858
A137: Analyst | B137: Portugal | C137: 26678.38822 | D137: 26678.38822 | E137: 26678.38822 | AF137: Controller | AG137: Norway | AH137: 100000 | AI137: 110000 | AJ137: 105000
A138: Analyst | B138: Republica Dominicana | C138: 15404.36457 | D138: 15404.36457 | E138: 15404.36457 | AF138: Controller | AG138: Pakistan | AH138: 48000 | AI138: 48000 | AJ138: 48000
A139: Analyst | B139: Romania | C139: 7500 | D139: 7500 | E139: 7500 | AF139: Controller | AG139: Portugal | AH139: 19818.23125 | AI139: 19818.23125 | AJ139: 19818.23125
A140: Analyst | B140: Russia | C140: 35000 | D140: 100000 | E140: 69000 | AF140: Controller | AG140: Qatar | AH140: 48000 | AI140: 48000 | AJ140: 48000
A141: Analyst | B141: Saudi Arabia | C141: 18000 | D141: 18000 | E141: 18000 | AF141: Controller | AG141: Russia | AH141: 24000 | AI141: 24000 | AJ141: 24000
A142: Analyst | B142: self-employed | C142: 50000 | D142: 50000 | E142: 50000 | AF142: Controller | AG142: Saudi Arabia | AH142: 14960 | AI142: 42000 | AJ142: 28480
A143: Analyst | B143: Singapore | C143: 27000 | D143: 80000 | E143: 43550 | AF143: Controller | AG143: South Africa | AH143: 9509.898829 | AI143: 9509.898829 | AJ143: 9509.898829
A144: Analyst | B144: Slovakia | C144: 13000 | D144: 13000 | E144: 13000 | AF144: Controller | AG144: Spain | AH144: 35571.18429 | AI144: 35571.18429 | AJ144: 35571.18429
A145: Analyst | B145: Slovenia | C145: 19055.99158 | D145: 19055.99158 | E145: 19055.99158 | AF145: Controller | AG145: Sri Lanka | AH145: 13800 | AI145: 13800 | AJ145: 13800
A146: Analyst | B146: South Africa | C146: 9600 | D146: 109729.6019 | E146: 44070.89405 | AF146: Controller | AG146: Switzerland | AH146: 145000 | AI146: 145000 | AJ146: 145000
A147: Analyst | B147: Spain | C147: 19055.99158 | D147: 47004.77924 | E147: 30807.1864 | AF147: Controller | AG147: UAE | AH147: 55500 | AI147: 85000 | AJ147: 70250
A148: Analyst | B148: Switzerland | C148: 150000 | D148: 150000 | E148: 150000 | AF148: Controller | AG148: UK | AH148: 67775.6657 | AI148: 157617.8272 | AJ148: 109281.6935
A149: Analyst | B149: Tunisia | C149: 11000 | D149: 11000 | E149: 11000 | AF149: Controller | AG149: USA | AH149: 24000 | AI149: 214000 | AJ149: 87813.23529
A150: Analyst | B150: Turkey | C150: 60000 | D150: 60000 | E150: 60000 | AF150: CXO or Top Mgmt. | AG150: Albania | AH150: 20571 | AI150: 20571 | AJ150: 20571
A151: Analyst | B151: UAE | C151: 12000 | D151: 60000 | E151: 31677.69953 | AF151: CXO or Top Mgmt. | AG151: Australia | AH151: 71393.67595 | AI151: 127488.7071 | AJ151: 95191.56793
A152: Analyst | B152: Uganda | C152: 100000 | D152: 100000 | E152: 100000 | AF152: CXO or Top Mgmt. | AG152: Canada | AH152: 98336.1523 | AI152: 98336.1523 | AJ152: 98336.1523
A153: Analyst | B153: UK | C153: 15761.78272 | D153: 170000 | E153: 57469.44941 | AF153: CXO or Top Mgmt. | AG153: Central America | AH153: 95000 | AI153: 95000 | AJ153: 95000
A154: Analyst | B154: Ukraine | C154: 12000 | D154: 12000 | E154: 12000 | AF154: CXO or Top Mgmt. | AG154: Denmark | AH154: 76906.90675 | AI154: 76906.90675 | AJ154: 76906.90675
A155: Analyst | B155: USA | C155: 10000 | D155: 160000 | E155: 62583.73737
A156: Analyst | B156: Zimbabwe | C156: 36400 | D156: 36400 | E156: 36400 | AF156: CXO or Top Mgmt. | AG156: italy | AH156: 69871.96914 | AI156: 69871.96914 | AJ156: 69871.96914
A157: Consultant | B157: Aruba | C157: 5000 | D157: 5000 | E157: 5000 | AF157: CXO or Top Mgmt. | AG157: malaysia | AH157: 35000 | AI157: 35000 | AJ157: 35000
A158: Consultant | B158: Australia | C158: 71393.67595 | D158: 173384.6416 | E158: 103302.2781 | AF158: CXO or Top Mgmt. | AG158: Mexico | AH158: 45000 | AI158: 100000 | AJ158: 72500
A159: Consultant | B159: Azerbaijan | C159: 36000 | D159: 36000 | E159: 36000 | AF159: CXO or Top Mgmt. | AG159: Oman | AH159: 100800 | AI159: 100800 | AJ159: 100800
A160: Consultant | B160: Brazil | C160: 11400 | D160: 220700 | E160: 116050 | AF160: CXO or Top Mgmt. | AG160: Portugal | AH160: 44000 | AI160: 44000 | AJ160: 44000
A161: Consultant | B161: Cambodia | C161: 3000 | D161: 3000 | E161: 3000 | AF161: CXO or Top Mgmt. | AG161: South Africa | AH161: 14630.61358 | AI161: 125000 | AJ161: 69815.30679
A162: Consultant | B162: Canada | C162: 55068.24529 | D162: 157337.8437 | E162: 100958.4497 | AF162: CXO or Top Mgmt. | AG162: Spain | AH162: 127039.9439 | AI162: 127039.9439 | AJ162: 127039.9439
A163: Consultant | B163: Denmark | C163: 20000 | D163: 20000 | E163: 20000 | AF163: CXO or Top Mgmt. | AG163: Sweden | AH163: 100000 | AI163: 100000 | AJ163: 100000
A164: Consultant | B164: Finland | C164: 60000 | D164: 60000 | E164: 60000 | AF164: CXO or Top Mgmt. | AG164: UK | AH164: 55166.23952 | AI164: 299473.8717 | AJ164: 114272.9247
A165: Consultant | B165: France | C165: 54627.17588 | D165: 80289.24454 | E165: 67458.21021 | AF165: CXO or Top Mgmt. | AG165: USA | AH165: 16000 | AI165: 300000 | AJ165: 125615.3846
A166: Consultant | B166: Germany | C166: 53356.77644 | D166: 90198.36017 | E166: 67977.97826 | AF166: Engineer | AG166: Australia | AH166: 159105.9064 | AI166: 168285.0933 | AJ166: 163695.4999
A167: Consultant | B167: India | C167: 2564.340003 | D167: 37500 | E167: 13928.39597 | AF167: Engineer | AG167: Brazil | AH167: 18000 | AI167: 80000 | AJ167: 49000
A168: Consultant | B168: Ireland | C168: 88927.96073 | D168: 88927.96073 | E168: 88927.96073 | AF168: Engineer | AG168: Canada | AH168: 68835.30661 | AI168: 68835.30661 | AJ168: 68835.30661
A169: Consultant | B169: italy | C169: 19055.99158 | D169: 19055.99158 | E169: 19055.99158 | AF169: Engineer | AG169: Denmark | AH169: 102542.5423 | AI169: 102542.5423 | AJ169: 102542.5423
A170: Consultant | B170: Netherlands | C170: 38111.98317 | D170: 38111.98317 | E170: 38111.98317 | AF170: Engineer | AG170: Dominican Republic | AH170: 6629 | AI170: 6629 | AJ170: 6629
A171: Consultant | B171: New Zealand | C171: 72000 | D171: 72000 | E171: 72000 | AF171: Engineer | AG171: Hungary | AH171: 14000 | AI171: 14000 | AJ171: 14000
A172: Consultant | B172: Pakistan | C172: 6368.45323 | D172: 21228.17743 | E172: 12899.15767 | AF172: Engineer | AG172: India | AH172: 2671.187503 | AI172: 40000 | AJ172: 12397.82557
A173: Consultant | B173: Poland | C173: 96000 | D173: 96000 | E173: 96000 | AF173: Engineer | AG173: malaysia | AH173: 11404.82044 | AI173: 11404.82044 | AJ173: 11404.82044
A174: Consultant | B174: Russia | C174: 36000 | D174: 36000 | E174: 36000 | AF174: Engineer | AG174: Mauritius | AH174: 9376.251388 | AI174: 9376.251388 | AJ174: 9376.251388
A175: Consultant | B175: Singapore | C175: 27600 | D175: 120000 | E175: 63900 | AF175: Engineer | AG175: mozambique | AH175: 24000 | AI175: 24000 | AJ175: 24000
A176: Consultant | B176: South Africa | C176: 82000 | D176: 82000 | E176: 82000 | AF176: Engineer | AG176: Netherlands | AH176: 53356.77644 | AI176: 76223.96634 | AJ176: 64790.37139
A177: Consultant | B177: Spain | C177: 12000 | D177: 12000 | E177: 12000 | AF177: Engineer | AG177: New Zealand | AH177: 39879.40468 | AI177: 39879.40468 | AJ177: 39879.40468
A178: Consultant | B178: Sweden | C178: 68954.52018 | D178: 68954.52018 | E178: 68954.52018 | AF178: Engineer | AG178: Portugal | AH178: 63519.97195 | AI178: 63519.97195 | AJ178: 63519.97195
A179: Consultant | B179: UK | C179: 31523.56544 | D179: 126094.2618 | E179: 83902.61294 | AF179: Engineer | AG179: Saudi Arabia | AH179: 57600 | AI179: 57600 | AJ179: 57600
A180: Consultant | B180: USA | C180: 12000 | D180: 250000 | E180: 98388.88889
A181: Controller | B181: Australia | C181: 49975.57316 | D181: 147886.9002 | E181: 82952.65205 | AF181: Engineer | AG181: Spain | AH181: 52086.377 | AI181: 52086.377 | AJ181: 52086.377
A182: Controller | B182: Brazil | C182: 15600 | D182: 15600 | E182: 15600 | AF182: Engineer | AG182: Thailand | AH182: 138000 | AI182: 138000 | AJ182: 138000
A183: Controller | B183: Canada | C183: 70802.02966 | D183: 108169.7675 | E183: 89485.8986 | AF183: Engineer | AG183: UAE | AH183: 36000 | AI183: 36000 | AJ183: 36000
A184: Controller | B184: Colombia | C184: 7200 | D184: 7200 | E184: 7200 | AF184: Engineer | AG184: UK | AH184: 31523.56544 | AI184: 231119.7486 | AJ184: 81372.72518
A185: Controller | B185: Croatia | C185: 15000 | D185: 15000 | E185: 15000 | AF185: Engineer | AG185: USA | AH185: 24000 | AI185: 130000 | AJ185: 72056.15385
A186: Controller | B186: Czech Republic | C186: 36000 | D186: 36000 | E186: 36000 | AF186: Manager | AG186: Argentina | AH186: 24000 | AI186: 24000 | AJ186: 24000
A187: Controller | B187: Denmark | C187: 82888.55506 | D187: 82888.55506 | E187: 82888.55506 | AF187: Manager | AG187: Asia | AH187: 12000 | AI187: 12000 | AJ187: 12000
A188: Controller | B188: Europe | C188: 114335.9495 | D188: 228671.899 | E188: 171503.9243 | AF188: Manager | AG188: Australia | AH188: 36000 | AI188: 203981.9313 | AJ188: 95631.0297
A189: Controller | B189: Germany | C189: 42558.38121 | D189: 82575.96353 | E189: 60767.43983 | AF189: Manager | AG189: Austria | AH189: 50815.97756 | AI189: 50815.97756 | AJ189: 50815.97756
A190: Controller | B190: Hungary | C190: 35063.02452 | D190: 35063.02452 | E190: 35063.02452 | AF190: Manager | AG190: Belgium | AH190: 41160.94182 | AI190: 41160.94182 | AJ190: 41160.94182
A191: Controller | B191: India | C191: 2564.340003 | D191: 21369.50002 | E191: 10468.17715 | AF191: Manager | AG191: Brasil | AH191: 61000 | AI191: 61000 | AJ191: 61000
A192: Controller | B192: Indonesia | C192: 30000 | D192: 30000 | E192: 30000 | AF192: Manager | AG192: Brazil | AH192: 26691.18301 | AI192: 26691.18301 | AJ192: 26691.18301
A193: Controller | B193: iran | C193: 12000 | D193: 12000 | E193: 12000 | AF193: Manager | AG193: Canada | AH193: 49168.07615 | AI193: 105219.683 | AJ193: 70334.47567
A194: Controller | B194: italy | C194: 30489.58654 | D194: 30489.58654 | E194: 30489.58654 | AF194: Manager | AG194: CEE | AH194: 60000 | AI194: 114335.9495 | AJ194: 87167.97475
A195: Controller | B195: Kuwait | C195: 15600 | D195: 15600 | E195: 15600 | AF195: Manager | AG195: Colombia | AH195: 24000 | AI195: 24000 | AJ195: 24000
A196: Controller | B196: Morocco | C196: 13745.70447 | D196: 13745.70447 | E196: 13745.70447 | AF196: Manager | AG196: Croatia | AH196: 24000 | AI196: 91468.75961 | AJ196: 57734.3798
A197: Controller | B197: Netherlands | C197: 63519.97195 | D197: 78764.76522 | E197: 71142.36858 | AF197: Manager | AG197: Denmark | AH197: 106815.1483 | AI197: 106815.1483 | AJ197: 106815.1483
A198: Controller | B198: Norway | C198: 100000 | D198: 110000 | E198: 105000 | AF198: Manager | AG198: Europe | AH198: 50307.81778 | AI198: 76223.96634 | AJ198: 63265.89206
A199: Controller | B199: Pakistan | C199: 48000 | D199: 48000 | E199: 48000 | AF199: Manager | AG199: Finland | AH199: 76223.96634 | AI199: 76223.96634 | AJ199: 76223.96634
A200: Controller | B200: Portugal | C200: 19818.23125 | D200: 19818.23125 | E200: 19818.23125 | AF200: Manager | AG200: France | AH200: 48000 | AI200: 62249.57251 | AJ200: 54958.91613
A201: Controller | B201: Qatar | C201: 48000 | D201: 48000 | E201: 48000 | AF201: Manager | AG201: Germany | AH201: 30489.58654 | AI201: 184207.9187 | AJ201: 102501.3987
A202: Controller | B202: Russia | C202: 24000 | D202: 24000 | E202: 24000 | AF202: Manager | AG202: Ghana | AH202: 18000 | AI202: 18000 | AJ202: 18000
A203: Controller | B203: Saudi Arabia | C203: 14960 | D203: 42000 | E203: 28480 | AF203: Manager | AG203: Greece | AH203: 20326.39102 | AI203: 44463.98036 | AJ203: 30066.12006
A204: Controller | B204: South Africa | C204: 9509.898829 | D204: 9509.898829 | E204: 9509.898829 | AF204: Manager | AG204: Guyana | AH204: 6000 | AI204: 6000 | AJ204: 6000
A205: Controller | B205: Spain | C205: 35571.18429 | D205: 35571.18429 | E205: 35571.18429 | AF205: Manager | AG205: Hungary | AH205: 23000 | AI205: 40000 | AJ205: 31500
A206: Controller | B206: Sri Lanka | C206: 13800 | D206: 13800 | E206: 13800 | AF206: Manager | AG206: India | AH206: 2136.950002 | AI206: 186983.1252 | AJ206: 15642.54648
A207: Controller | B207: Switzerland | C207: 145000 | D207: 145000 | E207: 145000 | AF207: Manager | AG207: Indonesia | AH207: 10000 | AI207: 98000 | AJ207: 56000
A208: Controller | B208: UAE | C208: 55500 | D208: 85000 | E208: 70250 | AF208: Manager | AG208: Israel | AH208: 41000 | AI208: 150000 | AJ208: 82666.66667
A209: Controller | B209: UK | C209: 67775.6657 | D209: 157617.8272 | E209: 109281.6935 | AF209: Manager | AG209: Kenya | AH209: 51497.00599 | AI209: 51497.00599 | AJ209: 51497.00599
A210: Controller | B210: USA | C210: 24000 | D210: 214000 | E210: 87813.23529
A211: CXO or Top Mgmt. | B211: Albania | C211: 20571 | D211: 20571 | E211: 20571 | AF211: Manager | AG211: Latin America | AH211: 4400 | AI211: 4400 | AJ211: 4400
A212: CXO or Top Mgmt. | B212: Australia | C212: 71393.67595 | D212: 127488.7071 | E212: 95191.56793 | AF212: Manager | AG212: Libya | AH212: 24864 | AI212: 24864 | AJ212: 24864
A213: CXO or Top Mgmt. | B213: Canada | C213: 98336.1523 | D213: 98336.1523 | E213: 98336.1523 | AF213: Manager | AG213: malaysia | AH213: 15206.42725 | AI213: 36000 | AJ213: 24642.02803
A214: CXO or Top Mgmt. | B214: Central America | C214: 95000 | D214: 95000 | E214: 95000 | AF214: Manager | AG214: Mexico | AH214: 11000 | AI214: 30000 | AJ214: 21000
A215: CXO or Top Mgmt. | B215: Denmark | C215: 76906.90675 | D215: 76906.90675 | E215: 76906.90675 | AF215: Manager | AG215: Montenegro | AH215: 13500 | AI215: 13500 | AJ215: 13500
A216: CXO or Top Mgmt. | B216: India | C216: 2671.187503 | D216: 80135.62509 | E216: 28659.37181 | AF216: Manager | AG216: Myanmar | AH216: 15000 | AI216: 20400 | AJ216: 17700
A217: CXO or Top Mgmt. | B217: italy | C217: 69871.96914 | D217: 69871.96914 | E217: 69871.96914 | AF217: Manager | AG217: Netherlands | AH217: 57167.97475 | AI217: 104172.754 | AJ217: 76859.16606
A218: CXO or Top Mgmt. | B218: malaysia | C218: 35000 | D218: 35000 | E218: 35000 | AF218: Manager | AG218: New Zealand | AH218: 67794.98796 | AI218: 143565.8568 | AJ218: 104773.8838
A219: CXO or Top Mgmt. | B219: Mexico | C219: 45000 | D219: 100000 | E219: 72500 | AF219: Manager | AG219: Nigeria | AH219: 9171.032357 | AI219: 12326.65639 | AJ219: 10748.84438
A220: CXO or Top Mgmt. | B220: Oman | C220: 100800 | D220: 100800 | E220: 100800 | AF220: Manager | AG220: Norway | AH220: 72412.76802 | AI220: 125000 | AJ220: 101804.256
A221: CXO or Top Mgmt. | B221: Portugal | C221: 44000 | D221: 44000 | E221: 44000 | AF221: Manager | AG221: Pakistan | AH221: 2165.274098 | AI221: 40000 | AJ221: 10382.34181
A222: CXO or Top Mgmt. | B222: South Africa | C222: 14630.61358 | D222: 125000 | E222: 69815.30679 | AF222: Manager | AG222: Panama | AH222: 63519.97195 | AI222: 63519.97195 | AJ222: 63519.97195
A223: CXO or Top Mgmt. | B223: Spain | C223: 127039.9439 | D223: 127039.9439 | E223: 127039.9439 | AF223: Manager | AG223: Philippines | AH223: 5120.291288 | AI223: 17067.63763 | AJ223: 9458.315851
A224: CXO or Top Mgmt. | B224: Sweden | C224: 100000 | D224: 100000 | E224: 100000 | AF224: Manager | AG224: Poland | AH224: 26043.1885 | AI224: 28000 | AJ224: 27021.59425
A225: CXO or Top Mgmt. | B225: UK | C225: 55166.23952 | D225: 299473.8717 | E225: 114272.9247 | AF225: Manager | AG225: Portugal | AH225: 22867.1899 | AI225: 26678.38822 | AJ225: 24772.78906
A226: CXO or Top Mgmt. | B226: USA | C226: 16000 | D226: 300000 | E226: 125615.3846
A227: Engineer | B227: Australia | C227: 159105.9064 | D227: 168285.0933 | E227: 163695.4999 | AF227: Manager | AG227: Romania | AH227: 15000 | AI227: 19200 | AJ227: 17100
A228: Engineer | B228: Brazil | C228: 18000 | D228: 80000 | E228: 49000 | AF228: Manager | AG228: Russia | AH228: 41000 | AI228: 60000 | AJ228: 50500
A229: Engineer | B229: Canada | C229: 68835.30661 | D229: 68835.30661 | E229: 68835.30661 | AF229: Manager | AG229: Saudi Arabia | AH229: 24000 | AI229: 85333.33333 | AJ229: 40418.66667
A230: Engineer | B230: Denmark | C230: 102542.5423 | D230: 102542.5423 | E230: 102542.5423 | AF230: Manager | AG230: Singapore | AH230: 20640 | AI230: 72571.8027 | AJ230: 46605.90135
A231: Engineer | B231: Dominican Republic | C231: 6629 | D231: 6629 | E231: 6629 | AF231: Manager | AG231: Somalia | AH231: 78000 | AI231: 78000 | AJ231: 78000
A232: Engineer | B232: Hungary | C232: 14000 | D232: 14000 | E232: 14000 | AF232: Manager | AG232: South Africa | AH232: 12192.17799 | AI232: 131675.5223 | AJ232: 64096.11387
A233: Engineer | B233: India | C233: 2671.187503 | D233: 40000 | E233: 12397.82557 | AF233: Manager | AG233: Spain | AH233: 55262.3756 | AI233: 57167.97475 | AJ233: 56215.17518
A234: Engineer | B234: malaysia | C234: 11404.82044 | D234: 11404.82044 | E234: 11404.82044 | AF234: Manager | AG234: Sri Lanka | AH234: 1805.773962 | AI234: 85000 | AJ234: 32601.92465
A235: Engineer | B235: Mauritius | C235: 9376.251388 | D235: 9376.251388 | E235: 9376.251388 | AF235: Manager | AG235: Switzerland | AH235: 107000 | AI235: 148102.2286 | AJ235: 127551.1143
A236: Engineer | B236: mozambique | C236: 24000 | D236: 24000 | E236: 24000 | AF236: Manager | AG236: Thailand | AH236: 8000 | AI236: 8000 | AJ236: 8000
A237: Engineer | B237: Netherlands | C237: 53356.77644 | D237: 76223.96634 | E237: 64790.37139 | AF237: Manager | AG237: UAE | AH237: 12000 | AI237: 100000 | AJ237: 50759.03819
A238: Engineer | B238: New Zealand | C238: 39879.40468 | D238: 39879.40468 | E238: 39879.40468 | AF238: Manager | AG238: UK | AH238: 28371.2089 | AI238: 118213.3704 | AJ238: 66390.12811
A239: Engineer | B239: Portugal | C239: 63519.97195 | D239: 63519.97195 | E239: 63519.97195 | AF239: Manager | AG239: Ukraine | AH239: 12000 | AI239: 12000 | AJ239: 12000
A240: Engineer | B240: Saudi Arabia | C240: 57600 | D240: 57600 | E240: 57600 | AF240: Manager | AG240: Uruguay | AH240: 35000 | AI240: 35000 | AJ240: 35000
A241: Engineer | B241: Singapore | C241: 45000 | D241: 50000 | E241: 47500 | AF241: Manager | AG241: USA | AH241: 15000 | AI241: 400000 | AJ241: 77581.71034
A242: Engineer | B242: Spain | C242: 52086.377 | D242: 52086.377 | E242: 52086.377 | AF242: Manager | AG242: Vietnam | AH242: 10000 | AI242: 10000 | AJ242: 10000
A243: Engineer | B243: Thailand | C243: 138000 | D243: 138000 | E243: 138000 | AF243: Misc. | AG243: India | AH243: 2493.108336 | AI243: 41712.23119 | AJ243: 17551.33488
A244: Engineer | B244: UAE | C244: 36000 | D244: 36000 | E244: 36000 | AF244: Misc. | AG244: USA | AH244: 74461 | AI244: 90000 | AJ244: 83820.33333
A245: Engineer | B245: UK | C245: 31523.56544 | D245: 231119.7486 | E245: 81372.72518 | AF245: Reporting | AG245: Armenia | AH245: 6000 | AI245: 6000 | AJ245: 6000
A246: Engineer | B246: USA | C246: 24000 | D246: 130000 | E246: 72056.15385
A247: Manager | B247: Argentina | C247: 24000 | D247: 24000 | E247: 24000 | AF247: Reporting | AG247: Ethiopia | AH247: 2953.846154 | AI247: 2953.846154 | AJ247: 2953.846154
A248: Manager | B248: Asia | C248: 12000 | D248: 12000 | E248: 12000 | AF248: Reporting | AG248: India | AH248: 2671.187503 | AI248: 100614.7293 | AJ248: 10314.75139
A249: Manager | B249: Australia | C249: 36000 | D249: 203981.9313 | E249: 95631.0297 | AF249: Reporting | AG249: Israel | AH249: 31200 | AI249: 55000 | AJ249: 43100
A250: Manager | B250: Austria | C250: 50815.97756 | D250: 50815.97756 | E250: 50815.97756 | AF250: Reporting | AG250: Netherlands | AH250: 254079.8878 | AI250: 254079.8878 | AJ250: 254079.8878
A251: Manager | B251: Belgium | C251: 41160.94182 | D251: 41160.94182 | E251: 41160.94182 | AF251: Reporting | AG251: Pakistan | AH251: 1910.535969 | AI251: 1910.535969 | AJ251: 1910.535969
A252: Manager | B252: Brasil | C252: 61000 | D252: 61000 | E252: 61000 | AF252: Reporting | AG252: Paraguay | AH252: 20000 | AI252: 20000 | AJ252: 20000
A253: Manager | B253: Brazil | C253: 26691.18301 | D253: 26691.18301 | E253: 26691.18301 | AF253: Reporting | AG253: Philippines | AH253: 10809.50383 | AI253: 18060 | AJ253: 14434.75191
A254: Manager | B254: Canada | C254: 49168.07615 | D254: 105219.683 | E254: 70334.47567 | AF254: Reporting | AG254: Romania | AH254: 30000 | AI254: 30000 | AJ254: 30000
A255: Manager | B255: CEE | C255: 60000 | D255: 114335.9495 | E255: 87167.97475 | AF255: Reporting | AG255: South Africa | AH255: 12000 | AI255: 45000 | AJ255: 28500
A256: Manager | B256: Colombia | C256: 24000 | D256: 24000 | E256: 24000 | AF256: Reporting | AG256: UK | AH256: 19000 | AI256: 45709.16989 | AJ256: 31939.07519
A257: Manager | B257: Croatia | C257: 24000 | D257: 91468.75961 | E257: 57734.3798 | AF257: Reporting | AG257: Ukraine | AH257: 15000 | AI257: 15000 | AJ257: 15000
A258: Manager | B258: Denmark | C258: 106815.1483 | D258: 106815.1483 | E258: 106815.1483 | AF258: Reporting | AG258: USA | AH258: 32000 | AI258: 92000 | AJ258: 58200
A259: Manager | B259: Europe | C259: 50307.81778 | D259: 76223.96634 | E259: 63265.89206 | AF259: Specialist | AG259: Australia | AH259: 81592.77251 | AI259: 108110.4236 | AJ259: 94851.59805
... 74 more rows

Sheet Year&Salary
A1: ='Result list'!A1 -> CXO or Top Mgmt. | B1: =IF(A1=G1,2,IF(A1=K1,6,IF(A1=O1,10,IF(A1=S1,14,IF(A1=W1,18,IF(A1=AA1,22,IF(A1=AE1,26,IF(A1=AI1,30,IF(A1=AM1,34,IF(A1=AQ1,38,IF(A1=AU1,42,"FFFF"))))))))))) -> 18 | D1: Job Type | F1: Job Type | G1: Accountant | J1: Job Type | K1: Analyst | N1: Job Type | O1: Consultant | R1: Job Type | S1: Controller | V1: Job Type | W1: CXO or Top Mgmt. | Z1: Job Type | AA1: Engineer | AD1: Job Type | AE1: Manager | AH1: Job Type | AI1: Misc. | AL1: Job Type | AM1: Reporting | AP1: Job Type | AQ1: Specialist | AT1: Job Type | AU1: ALL
D2: Analyst
A3: =IF(INDEX(F:AU,ROW(A3),$B$1-1)="","",INDEX(F:AU,ROW(A3),$B$1-1)) -> Years of Experience | B3: =INDEX(F:AQ,ROW(A3),2) -> Average of Salary in USD | D3: Controller | F3: Years of Experience | G3: Average of Salary in USD | J3: Years of Experience | K3: Average of Salary in USD | N3: Years of Experience | O3: Average of Salary in USD | R3: Years of Experience | S3: Average of Salary in USD | V3: Years of Experience | W3: Average of Salary in USD | Z3: Years of Experience | AA3: Average of Salary in USD | AD3: Years of Experience | AE3: Average of Salary in USD | AH3: Years of Experience | AI3: Average of Salary in USD | AL3: Years of Experience | AM3: Average of Salary in USD | AP3: Years of Experience | AQ3: Average of Salary in USD | AT3: Years of Experience | AU3: Average of Salary in USD
A4: =IF(INDEX(F:AU,ROW(A4),$B$1-1)="","",INDEX(F:AU,ROW(A4),$B$1-1)) -> 1 | B4: =IF(INDEX(F:AU,ROW(A4),$B$1)="","",INDEX(F:AU,ROW(A4),$B$1)) -> 11677.96876 | D4: Engineer | F4: 1 | G4: 59000 | J4: 0 | K4: 18907.32235 | N4: 0 | O4: 22311.58334 | R4: 1 | S4: 46325 | V4: 1 | W4: 11677.96876 | Z4: 0.5 | AA4: 50000 | AD4: 0 | AE4: 10043.66501 | AH4: 3 | AI4: 46000 | AL4: 0.5 | AM4: 10000 | AP4: 1 | AQ4: 69649.61557 | AT4: 0 | AU4: 15497.34374
A5: =IF(INDEX(F:AU,ROW(A5),$B$1-1)="","",INDEX(F:AU,ROW(A5),$B$1-1)) -> 2 | B5: =IF(INDEX(F:AU,ROW(A5),$B$1)="","",INDEX(F:AU,ROW(A5),$B$1)) -> 71393.67595 | D5: Manager | F5: 1.5 | G5: 6232.770841 | J5: 0.3 | K5: 15000 | N5: 1 | O5: 24136.87343 | R5: 2 | S5: 15867.47471 | V5: 2 | W5: 71393.67595 | Z5: 1 | AA5: 24742.66695 | AD5: 0.1 | AE5: 5591.68584 | AH5: 5 | AI5: 11746.55417 | AL5: 1 | AM5: 8161.583337 | AP5: 2 | AQ5: 80000 | AT5: 0.1 | AU5: 5591.68584
A6: 3 | B6: 75000 | D6: CXO or Top Mgmt. | F6: 2 | G6: 8451.953549 | J6: 0.5 | K6: 5342.375006 | N6: 2 | O6: 4705.425004 | R6: 3 | S6: 22500 | V6: 3 | W6: 75000 | Z6: 2 | AA6: 17369.09961 | AD6: 1 | AE6: 19182.40063 | AH6: 9 | AI6: 74461 | AL6: 2 | AM6: 15989.08959 | AP6: 3 | AQ6: 4019 | AT6: 0.3 | AU6: 15000
A7: 4 | B7: 100800 | D7: Accountant | F7: 3 | G7: 24533.19584 | J7: 0.6 | K7: 9000 | N7: 3 | O7: 44829.19015 | R7: 4 | S7: 3953.357505 | V7: 4 | W7: 100800 | Z7: 2.5 | AA7: 4451.979172 | AD7: 1.1 | AE7: 30273.45837 | AH7: 12 | AI7: 41712.23119 | AL7: 2.5 | AM7: 13500 | AP7: 5 | AQ7: 68950.48 | AT7: 0.5 | AU7: 21780.79167
A8: 4.5 | B8: 2671.187503 | D8: Specialist | F8: 4 | G8: 24747.8098 | J8: 0.8 | K8: 8903.958344 | N8: 4 | O8: 59765.91436 | R8: 5 | S8: 60271.23802 | V8: 4.5 | W8: 2671.187503 | Z8: 3 | AA8: 12883.43056 | AD8: 1.5 | AE8: 39622.61463 | AL8: 3 | AM8: 6725.552461 | AP8: 6 | AQ8: 19249.93027 | AT8: 0.6 | AU8: 9000
A9: 5 | B9: 71668.07615 | D9: Reporting | F9: 4.5 | G9: 36000 | J9: 1 | K9: 32352.62266 | N9: 5 | O9: 69000 | R9: 7 | S9: 19350 | V9: 5 | W9: 71668.07615 | Z9: 4 | AA9: 51000 | AD9: 2 | AE9: 33339.72423 | AL9: 3.5 | AM9: 4095.820838 | AP9: 7 | AQ9: 15153.95834 | AT9: 0.8 | AU9: 8903.958344
A10: 6 | B10: 76136.36115 | D10: Consultant | F10: 5 | G10: 32122.60726 | J10: 1.5 | K10: 46456.28137 | N10: 6 | O10: 69677.6256 | R10: 8 | S10: 35933.2727 | V10: 6 | W10: 76136.36115 | Z10: 5 | AA10: 44626.46823 | AD10: 3 | AE10: 28560.28099 | AL10: 4 | AM10: 5572.527981 | AP10: 8 | AQ10: 30609.42618 | AT10: 1 | AU10: 30813.44245
A11: 8 | B11: 47166.34075 | D11: Misc. | F11: 6 | G11: 68561.02821 | J11: 1.6 | K11: 4273.900005 | N11: 7 | O11: 80678.38822 | R11: 9 | S11: 68250 | V11: 8 | W11: 47166.34075 | Z11: 6 | AA11: 24796.05556 | AD11: 4 | AE11: 30531.37594 | AL11: 4.5 | AM11: 4763.617714 | AP11: 10 | AQ11: 48533.2 | AT11: 1.1 | AU11: 30273.45837
A12: 9 | B12: 44519.79172 | D12: ALL | F12: 7 | G12: 46872.09663 | J12: 2 | K12: 28066.41335 | N12: 8 | O12: 70100.77675 | R12: 10 | S12: 78003.18616 | V12: 9 | W12: 44519.79172 | Z12: 7 | AA12: 30630.82176 | AD12: 4.5 | AE12: 11000 | AL12: 5 | AM12: 5475.989586 | AP12: 14 | AQ12: 47285.34816 | AT12: 1.5 | AU12: 41557.11373
A13: 10 | B13: 105304.9409 | F13: 8 | G13: 33539.69982 | J13: 2.4 | K13: 10150.51251 | N13: 9 | O13: 75000 | R13: 12 | S13: 81285.92657 | V13: 10 | W13: 105304.9409 | Z13: 8 | AA13: 14400 | AD13: 4.6 | AE13: 18000 | AL13: 5.5 | AM13: 4006.781255 | AP13: 16 | AQ13: 108110.4236 | AT13: 1.6 | AU13: 4273.900005
A14: 12 | B14: 35000 | F14: 9 | G14: 57000 | J14: 2.5 | K14: 36585.19571 | N14: 10 | O14: 63967.68947 | R14: 13 | S14: 40300 | V14: 12 | W14: 35000 | Z14: 9 | AA14: 80000 | AD14: 5 | AE14: 25193.00401 | AL14: 6 | AM14: 22888.22643 | AP14: 18 | AQ14: 52000 | AT14: 2 | AU14: 26333.1454
A15: 15 | B15: 112914.7845 | F15: 10 | G15: 49457.17915 | J15: 3 | K15: 38545.87751 | N15: 12 | O15: 126094.2618 | R15: 15 | S15: 73440.40738 | V15: 15 | W15: 112914.7845 | Z15: 10 | AA15: 115039.9162 | AD15: 6 | AE15: 38572.93579 | AL15: 6.4 | AM15: 6600 | AP15: 20 | AQ15: 45000 | AT15: 2.4 | AU15: 10150.51251
A16: 17 | B16: 49138.20339 | F16: 11 | G16: 38000 | J16: 3.5 | K16: 19910.88681 | N16: 13 | O16: 45794.35418 | R16: 18 | S16: 82888.55506 | V16: 17 | W16: 49138.20339 | Z16: 12 | AA16: 91064.09447 | AD16: 7 | AE16: 27163.81135 | AL16: 7 | AM16: 4555.267985 | AP16: 25 | AQ16: 62523.56544 | AT16: 2.5 | AU16: 28696.8511
A17: 18 | B17: 82623.98971 | F17: 12 | G17: 123500 | J17: 4 | K17: 32352.56976 | N17: 14 | O17: 48073.4373 | R17: 20 | S17: 90836.30453 | V17: 18 | W17: 82623.98971 | Z17: 13 | AA17: 77000 | AD17: 7.3 | AE17: 8738 | AL17: 8 | AM17: 31676.08488 | AT17: 3 | AU17: 30986.0955
A18: 20 | B18: 135009.986 | F18: 14 | G18: 13102.7125 | J18: 4.5 | K18: 21680.79167 | N18: 15 | O18: 59645.20745 | R18: 22 | S18: 103000 | V18: 20 | W18: 135009.986 | Z18: 14 | AA18: 79259.98597 | AD18: 8 | AE18: 38756.78247 | AL18: 9 | AM18: 7123.166675 | AT18: 3.5 | AU18: 15957.12032
A19: 22 | B19: 121396.6017 | F19: 15 | G19: 44024.95762 | J19: 5 | K19: 44547.2527 | N19: 16 | O19: 101206.4068 | R19: 23 | S19: 24000 | V19: 22 | W19: 121396.6017 | Z19: 15 | AA19: 44000 | AD19: 8.5 | AE19: 17807.91669 | AL19: 10 | AM19: 58500 | AT19: 4 | AU19: 30723.66953
A20: 25 | B20: 135000 | F20: 16 | G20: 63000 | J20: 5.5 | K20: 105431.0888 | N20: 20 | O20: 141873.4272 | R20: 25 | S20: 108887.8328 | V20: 25 | W20: 135000 | Z20: 17 | AA20: 168285.0933 | AD20: 9 | AE20: 25383.36724 | AL20: 11 | AM20: 31200 | AT20: 4.5 | AU20: 15530.09974
A21: 26 | B21: 50000 | F21: 20 | G21: 60518.05502 | J21: 5.6 | K21: 39355.49588 | N21: 21 | O21: 21369.50002 | R21: 30 | S21: 49975.57316 | V21: 26 | W21: 50000 | Z21: 20 | AA21: 80071.27117 | AD21: 10 | AE21: 65027.12169 | AL21: 12 | AM21: 55030 | AT21: 4.6 | AU21: 18000
A22: 27 | B22: 192000 | F22: 27 | G22: 132588.2553 | J22: 6 | K22: 41909.48022 | N22: 30 | O22: 101990.9656 | V22: 27 | W22: 192000 | Z22: 22 | AA22: 69960 | AD22: 11 | AE22: 33945.14271 | AL22: 15 | AM22: 45709.16989 | AT22: 5 | AU22: 36861.28581
A23: 30 | B23: 177583.1198 | F23: 30 | G23: 30000 | J23: 6.5 | K23: 17807.91669 | N23: 36 | O23: 10684.75001 | V23: 30 | W23: 177583.1198 | Z23: 25 | AA23: 67500 | AD23: 12 | AE23: 43662.48678 | AL23: 30 | AM23: 37000 | AT23: 5.5 | AU23: 71622.98632
F24: 35 | G24: 39404.4568 | J24: 7 | K24: 53998.62907 | AD24: 13 | AE24: 13712.36237 | AT24: 5.6 | AU24: 39355.49588
J25: 7.9 | K25: 9616.275011 | AD25: 14 | AE25: 77648.21068 | AT25: 6 | AU25: 40675.93701
J26: 8 | K26: 34573.9124 | AD26: 15 | AE26: 69244.1289 | AT26: 6.4 | AU26: 6600
J27: 9 | K27: 55165.7513 | AD27: 16 | AE27: 40263.78504 | AT27: 6.5 | AU27: 17807.91669
J28: 10 | K28: 49613.55311 | AD28: 17 | AE28: 32337.96099 | AT28: 7 | AU28: 39985.52098
J29: 11 | K29: 46943.5449 | AD29: 18 | AE29: 31501.54167 | AT29: 7.3 | AU29: 8738
J30: 12 | K30: 44343.43151 | AD30: 19 | AE30: 3200 | AT30: 7.9 | AU30: 9616.275011
J31: 13 | K31: 79429.57382 | AD31: 20 | AE31: 61149.82513 | AT31: 8 | AU31: 38276.913
J32: 14 | K32: 69626.42747 | AD32: 21 | AE32: 40004.52084 | AT32: 8.5 | AU32: 17807.91669
J33: 15 | K33: 55732.88739 | AD33: 22 | AE33: 16027.12502 | AT33: 9 | AU33: 45588.61633
J34: 16 | K34: 55854.13322 | AD34: 23 | AE34: 31399.82914 | AT34: 10 | AU34: 60763.50681
J35: 17 | K35: 80242.5 | AD35: 25 | AE35: 92170.28075 | AT35: 11 | AU35: 40526.20097
J36: 18 | K36: 62000 | AD36: 26 | AE36: 8400 | AT36: 12 | AU36: 53915.88134
J37: 20 | K37: 69945.96326 | AD37: 27 | AE37: 25813.35254 | AT37: 13 | AU37: 45538.17198
J38: 21 | K38: 32037.57292 | AD38: 28 | AE38: 10684.75001 | AT38: 14 | AU38: 66229.68164
J39: 23 | K39: 36355.50292 | AD39: 29 | AE39: 57951.97917 | AT39: 15 | AU39: 64565.14918
J40: 25 | K40: 46490.22917 | AD40: 30 | AE40: 74993.10834 | AT40: 16 | AU40: 56716.62104
J41: 27 | K41: 68500 | AD41: 35 | AE41: 109130.3332 | AT41: 17 | AU41: 72467.49134
J42: 30 | K42: 94923.0802 | AT42: 18 | AU42: 53520.75186
J43: 32 | K43: 245840.3808 | AT43: 19 | AU43: 3200
J44: 33 | K44: 24000 | AT44: 20 | AU44: 75287.9159
J45: 34 | K45: 55166.23952 | AT45: 21 | AU45: 34243.03473
J46: 40 | K46: 109729.6019 | AT46: 22 | AU46: 92196.155
AT47: 23 | AU47: 31818.41554
AT48: 25 | AU48: 83208.22346
AT49: 26 | AU49: 29200
AT50: 27 | AU50: 85535.82673
AT51: 28 | AU51: 10684.75001
AT52: 29 | AU52: 57951.97917
AT53: 30 | AU53: 88586.04272
AT54: 32 | AU54: 245840.3808
AT55: 33 | AU55: 24000
AT56: 34 | AU56: 55166.23952
AT57: 35 | AU57: 74267.39502
AT58: 36 | AU58: 10684.75001
AT59: 40 | AU59: 109729.6019

Sheet Country&Salary
A1: Job Type | B1: Min of Salary in USD | C1: Max of Salary in USD | D1: Average of Salary in USD (World) | J1: Australia
A2: Accountant | B2: 1783.166904 | C2: 1229201.904 | D2: 54196.44058 | J2: Bermuda
A3: Analyst | B3: 2136.950002 | C3: 245840.3808 | D3: 46295.76942 | J3: Canada
A4: Consultant | B4: 2564.340003 | C4: 250000 | D4: 62950.73322 | J4: china
A5: Controller | B5: 2564.340003 | C5: 228671.899 | D5: 65103.92903 | J5: Dubai
A6: CXO or Top Mgmt. | B6: 2671.187503 | C6: 300000 | D6: 97265.87562 | J6: India
A7: Engineer | B7: 2671.187503 | C7: 231119.7486 | D7: 51715.15142 | J7: iran
A8: Manager | B8: 1805.773962 | C8: 400000 | D8: 46488.24071 | J8: italy
A9: Misc. | B9: 2493.108336 | C9: 90000 | D9: 45952.33422 | J9: Lesotho
A10: Reporting | B10: 1910.535969 | C10: 254079.8878 | D10: 19574.15853 | J10: Lithuania
A11: Specialist | B11: 4019 | C11: 400000 | D11: 59812.96927 | J11: Mexico
J12: Netherlands
J13: New Zealand
B14: India | J14: Norway
A15: Job Type | B15: clean Country | C15: Min of Salary in USD | D15: Max of Salary in USD | E15: Average of Salary in USD | J15: Pakistan
A16: Accountant | B16: Australia | C16: 64254.30835 | D16: 132588.2553 | E16: 92811.77873 | J16: Philippines
A17: Accountant | B17: Bermuda | C17: 78000 | D17: 78000 | E17: 78000 | J17: Portugal
A18: Accountant | B18: Canada | C18: 131770.4441 | D18: 1229201.904 | E18: 680486.1739 | J18: Qatar
A19: Accountant | B19: china | C19: 15092.18021 | D19: 15092.18021 | E19: 15092.18021 | J19: Romania
A20: Accountant | B20: Dubai | C20: 9146.565546 | D20: 33500 | E20: 23289.49561 | J20: Saudi Arabia
A21: Accountant | B21: India | C21: 2136.950002 | D21: 71231.66675 | E21: 10766.88189 | J21: Singapore
A22: Accountant | B22: iran | C22: 30000 | D22: 30000 | E22: 30000 | J22: South Africa
A23: Accountant | B23: italy | C23: 63519.97195 | D23: 63519.97195 | E23: 63519.97195 | J23: Sri Lanka
A24: Accountant | B24: Lesotho | C24: 177600 | D24: 177600 | E24: 177600 | J24: Turkey
A25: Accountant | B25: Lithuania | C25: 15000 | D25: 15000 | E25: 15000 | J25: UAE
A26: Accountant | B26: Mexico | C26: 15500 | D26: 15500 | E26: 15500 | J26: UK
A27: Accountant | B27: Netherlands | C27: 62564.63157 | D27: 62564.63157 | E27: 62564.63157 | J27: USA
A28: Accountant | B28: New Zealand | C28: 59819.10702 | D28: 75770.86889 | E28: 66465.67447 | J28: Viet Nam
A29: Accountant | B29: Norway | C29: 110000 | D29: 110000 | E29: 110000 | J29: Zambia
A30: Accountant | B30: Pakistan | C30: 1783.166904 | D30: 12227.4302 | E30: 4633.353712 | J30: arabian Gulf
A31: Accountant | B31: Philippines | C31: 19068 | D31: 19068 | E31: 19068 | J31: Baltic
A32: Accountant | B32: Portugal | C32: 21342.71058 | D32: 50815.97756 | E32: 36756.89043 | J32: Bangladesh
A33: Accountant | B33: Qatar | C33: 49200 | D33: 49200 | E33: 49200 | J33: Belgium
A34: Accountant | B34: Romania | C34: 8500 | D34: 8500 | E34: 8500 | J34: Bhutan
A35: Accountant | B35: Saudi Arabia | C35: 23000 | D35: 36500 | E35: 29750 | J35: Bolivia
A36: Accountant | B36: Singapore | C36: 60000 | D36: 60000 | E36: 60000 | J36: Brasil
A37: Accountant | B37: South Africa | C37: 29261.22717 | D37: 44654.09572 | E37: 36957.66144 | J37: Brazil
A38: Accountant | B38: Sri Lanka | C38: 3000 | D38: 3000 | E38: 3000 | J38: Bulgaria
A39: Accountant | B39: Turkey | C39: 36000 | D39: 36000 | E39: 36000 | J39: Colombia
A40: Accountant | B40: UAE | C40: 18000 | D40: 36000 | E40: 27000 | J40: Costa Rica
A41: Accountant | B41: UK | C41: 19000 | D41: 126094.2618 | E41: 55820.30474 | J41: Denmark
A42: Accountant | B42: USA | C42: 22880 | D42: 150000 | E42: 64737.19048 | J42: Egypt
A43: Accountant | B43: Viet Nam | C43: 10000 | D43: 10000 | E43: 10000 | J43: Estonia
A44: Accountant | B44: Zambia | C44: 6000 | D44: 20000 | E44: 13000 | J44: Europe
A45: Analyst | B45: arabian Gulf | C45: 21000 | D45: 21000 | E45: 21000 | J45: Finland
A46: Analyst | B46: Australia | C46: 20000 | D46: 173384.6416 | E46: 86525.3942 | J46: France
A47: Analyst | B47: Baltic | C47: 8400 | D47: 8400 | E47: 8400 | J47: Germany
A48: Analyst | B48: Bangladesh | C48: 3000 | D48: 17598.01729 | E48: 10299.00865 | J48: Hong Kong
A49: Analyst | B49: Belgium | C49: 38111.98317 | D49: 49443.94617 | E49: 41889.30417 | J49: Hungary
A50: Analyst | B50: Bhutan | C50: 4800 | D50: 4800 | E50: 4800 | J50: Iceland
A51: Analyst | B51: Bolivia | C51: 9600 | D51: 9600 | E51: 9600 | J51: Indonesia
A52: Analyst | B52: Brasil | C52: 4545 | D52: 35000 | E52: 19772.5 | J52: Ireland
A53: Analyst | B53: Brazil | C53: 9490.198404 | D53: 148284.3501 | E53: 34591.32259 | J53: Japan
A54: Analyst | B54: Bulgaria | C54: 14400 | D54: 14400 | E54: 14400 | J54: Kuwait
A55: Analyst | B55: Canada | C55: 20000 | D55: 245840.3808 | E55: 63558.64134 | J55: malaysia
A56: Analyst | B56: china | C56: 19000 | D56: 19000 | E56: 19000 | J56: Mongolia
A57: Analyst | B57: Colombia | C57: 6000 | D57: 16110 | E57: 10203.33333 | J57: MYS
A58: Analyst | B58: Costa Rica | C58: 28109.62755 | D58: 28109.62755 | E58: 28109.62755 | J58: Nigeria
A59: Analyst | B59: Denmark | C59: 106000 | D59: 106000 | E59: 106000 | J59: Panama
A60: Analyst | B60: Dubai | C60: 58799.34994 | D60: 58799.34994 | E60: 58799.34994 | J60: Peru
A61: Analyst | B61: Egypt | C61: 19831.43282 | D61: 19831.43282 | E61: 19831.43282 | J61: Poland
A62: Analyst | B62: Estonia | C62: 12000 | D62: 12000 | E62: 12000 | J62: Republica Dominicana
A63: Analyst | B63: Europe | C63: 149907.1338 | D63: 149907.1338 | E63: 149907.1338 | J63: Russia
A64: Analyst | B64: Finland | C64: 89944.28028 | D64: 89944.28028 | E64: 89944.28028 | J64: self-employed
A65: Analyst | B65: France | C65: 41923.18149 | D65: 41923.18149 | E65: 41923.18149 | J65: Slovakia
A66: Analyst | B66: Germany | C66: 50815.97756 | D66: 100000 | E66: 74545.57812 | J66: Slovenia
A67: Analyst | B67: Hong Kong | C67: 20000 | D67: 20000 | E67: 20000 | J67: Spain
A68: Analyst | B68: Hungary | C68: 11518.71171 | D68: 11518.71171 | E68: 11518.71171 | J68: Switzerland
A69: Analyst | B69: Iceland | C69: 41731 | D69: 41731 | E69: 41731 | J69: Tunisia
A70: Analyst | B70: India | C70: 2136.950002 | D70: 160271.2502 | E70: 11264.71626 | J70: Uganda
A71: Analyst | B71: Indonesia | C71: 4500 | D71: 15000 | E71: 8245.673595 | J71: Ukraine
A72: Analyst | B72: iran | C72: 12000 | D72: 12000 | E72: 12000 | J72: Zimbabwe
A73: Analyst | B73: Ireland | C73: 44463.98036 | D73: 63519.97195 | E73: 51239.44404 | J73: Aruba
A74: Analyst | B74: italy | C74: 24391.66923 | D74: 76223.96634 | E74: 50307.81778 | J74: Azerbaijan
A75: Analyst | B75: Japan | C75: 41000 | D75: 111000 | E75: 67564.77404 | J75: Cambodia
A76: Analyst | B76: Kuwait | C76: 36000 | D76: 50000 | E76: 43000 | J76: Sweden
A77: Analyst | B77: malaysia | C77: 30000 | D77: 30000 | E77: 30000 | J77: Croatia
A78: Analyst | B78: Mexico | C78: 10956.98289 | D78: 50000 | E78: 24471.24572 | J78: Czech Republic
A79: Analyst | B79: Mongolia | C79: 7261.72466 | D79: 7261.72466 | E79: 7261.72466 | J79: Kuwait
A80: Analyst | B80: MYS | C80: 12000 | D80: 12000 | E80: 12000 | J80: Morocco
A81: Analyst | B81: Netherlands | C81: 36206.38401 | D81: 95279.95792 | E81: 62090.77258 | J81: Albania
A82: Analyst | B82: New Zealand | C82: 40000 | D82: 63807.04749 | E82: 53990.22689 | J82: Central America
A83: Analyst | B83: Nigeria | C83: 18987 | D83: 18987 | E83: 18987 | J83: Oman
A84: Analyst | B84: Norway | C84: 67700.45258 | D84: 67700.45258 | E84: 67700.45258 | J84: Dominican Republic
A85: Analyst | B85: Pakistan | C85: 3000 | D85: 45000 | E85: 14887 | J85: Mauritius
A86: Analyst | B86: Panama | C86: 26000 | D86: 26000 | E86: 26000 | J86: mozambique
A87: Analyst | B87: Peru | C87: 15840 | D87: 15840 | E87: 15840 | J87: Thailand
A88: Analyst | B88: Philippines | C88: 3982.448779 | D88: 86000 | E88: 44991.22439 | J88: Argentina
A89: Analyst | B89: Poland | C89: 18000 | D89: 19200 | E89: 18406.2946 | J89: Asia
A90: Analyst | B90: Portugal | C90: 26678.38822 | D90: 26678.38822 | E90: 26678.38822 | J90: Austria
A91: Analyst | B91: Republica Dominicana | C91: 15404.36457 | D91: 15404.36457 | E91: 15404.36457 | J91: CEE
A92: Analyst | B92: Romania | C92: 7500 | D92: 7500 | E92: 7500 | J92: Ghana
A93: Analyst | B93: Russia | C93: 35000 | D93: 100000 | E93: 69000 | J93: Greece
A94: Analyst | B94: Saudi Arabia | C94: 18000 | D94: 18000 | E94: 18000 | J94: Guyana
A95: Analyst | B95: self-employed | C95: 50000 | D95: 50000 | E95: 50000 | J95: Israel
A96: Analyst | B96: Singapore | C96: 27000 | D96: 80000 | E96: 43550 | J96: Kenya
A97: Analyst | B97: Slovakia | C97: 13000 | D97: 13000 | E97: 13000 | J97: Latin America
A98: Analyst | B98: Slovenia | C98: 19055.99158 | D98: 19055.99158 | E98: 19055.99158 | J98: Libya
A99: Analyst | B99: South Africa | C99: 9600 | D99: 109729.6019 | E99: 44070.89405 | J99: Montenegro
A100: Analyst | B100: Spain | C100: 19055.99158 | D100: 47004.77924 | E100: 30807.1864 | J100: Myanmar
A101: Analyst | B101: Switzerland | C101: 150000 | D101: 150000 | E101: 150000 | J101: Somalia
A102: Analyst | B102: Tunisia | C102: 11000 | D102: 11000 | E102: 11000 | J102: Uruguay
A103: Analyst | B103: Turkey | C103: 60000 | D103: 60000 | E103: 60000 | J103: Vietnam
A104: Analyst | B104: UAE | C104: 12000 | D104: 60000 | E104: 31677.69953 | J104: Armenia
A105: Analyst | B105: Uganda | C105: 100000 | D105: 100000 | E105: 100000 | J105: Ethiopia
A106: Analyst | B106: UK | C106: 15761.78272 | D106: 170000 | E106: 57469.44941 | J106: Paraguay
A107: Analyst | B107: Ukraine | C107: 12000 | D107: 12000 | E107: 12000 | J107: Republic of Georgia
A108: Analyst | B108: USA | C108: 10000 | D108: 160000 | E108: 62583.73737 | J108: ALL
A109: Analyst | B109: Zimbabwe | C109: 36400 | D109: 36400 | E109: 36400
A110: Consultant | B110: Aruba | C110: 5000 | D110: 5000 | E110: 5000
A111: Consultant | B111: Australia | C111: 71393.67595 | D111: 173384.6416 | E111: 103302.2781
A112: Consultant | B112: Azerbaijan | C112: 36000 | D112: 36000 | E112: 36000
A113: Consultant | B113: Brazil | C113: 11400 | D113: 220700 | E113: 116050
A114: Consultant | B114: Cambodia | C114: 3000 | D114: 3000 | E114: 3000
A115: Consultant | B115: Canada | C115: 55068.24529 | D115: 157337.8437 | E115: 100958.4497
A116: Consultant | B116: Denmark | C116: 20000 | D116: 20000 | E116: 20000
A117: Consultant | B117: Finland | C117: 60000 | D117: 60000 | E117: 60000
A118: Consultant | B118: France | C118: 54627.17588 | D118: 80289.24454 | E118: 67458.21021
A119: Consultant | B119: Germany | C119: 53356.77644 | D119: 90198.36017 | E119: 67977.97826
A120: Consultant | B120: India | C120: 2564.340003 | D120: 37500 | E120: 13928.39597
A121: Consultant | B121: Ireland | C121: 88927.96073 | D121: 88927.96073 | E121: 88927.96073
A122: Consultant | B122: italy | C122: 19055.99158 | D122: 19055.99158 | E122: 19055.99158
A123: Consultant | B123: Netherlands | C123: 38111.98317 | D123: 38111.98317 | E123: 38111.98317
A124: Consultant | B124: New Zealand | C124: 72000 | D124: 72000 | E124: 72000
A125: Consultant | B125: Pakistan | C125: 6368.45323 | D125: 21228.17743 | E125: 12899.15767
A126: Consultant | B126: Poland | C126: 96000 | D126: 96000 | E126: 96000
A127: Consultant | B127: Russia | C127: 36000 | D127: 36000 | E127: 36000
A128: Consultant | B128: Singapore | C128: 27600 | D128: 120000 | E128: 63900
A129: Consultant | B129: South Africa | C129: 82000 | D129: 82000 | E129: 82000
A130: Consultant | B130: Spain | C130: 12000 | D130: 12000 | E130: 12000
A131: Consultant | B131: Sweden | C131: 68954.52018 | D131: 68954.52018 | E131: 68954.52018
A132: Consultant | B132: UK | C132: 31523.56544 | D132: 126094.2618 | E132: 83902.61294
A133: Consultant | B133: USA | C133: 12000 | D133: 250000 | E133: 98388.88889
A134: Controller | B134: Australia | C134: 49975.57316 | D134: 147886.9002 | E134: 82952.65205
A135: Controller | B135: Brazil | C135: 15600 | D135: 15600 | E135: 15600
A136: Controller | B136: Canada | C136: 70802.02966 | D136: 108169.7675 | E136: 89485.8986
A137: Controller | B137: Colombia | C137: 7200 | D137: 7200 | E137: 7200
A138: Controller | B138: Croatia | C138: 15000 | D138: 15000 | E138: 15000
A139: Controller | B139: Czech Republic | C139: 36000 | D139: 36000 | E139: 36000
A140: Controller | B140: Denmark | C140: 82888.55506 | D140: 82888.55506 | E140: 82888.55506
A141: Controller | B141: Europe | C141: 114335.9495 | D141: 228671.899 | E141: 171503.9243
A142: Controller | B142: Germany | C142: 42558.38121 | D142: 82575.96353 | E142: 60767.43983
A143: Controller | B143: Hungary | C143: 35063.02452 | D143: 35063.02452 | E143: 35063.02452
A144: Controller | B144: India | C144: 2564.340003 | D144: 21369.50002 | E144: 10468.17715
A145: Controller | B145: Indonesia | C145: 30000 | D145: 30000 | E145: 30000
A146: Controller | B146: iran | C146: 12000 | D146: 12000 | E146: 12000
A147: Controller | B147: italy | C147: 30489.58654 | D147: 30489.58654 | E147: 30489.58654
A148: Controller | B148: Kuwait | C148: 15600 | D148: 15600 | E148: 15600
A149: Controller | B149: Morocco | C149: 13745.70447 | D149: 13745.70447 | E149: 13745.70447
A150: Controller | B150: Netherlands | C150: 63519.97195 | D150: 78764.76522 | E150: 71142.36858
A151: Controller | B151: Norway | C151: 100000 | D151: 110000 | E151: 105000
A152: Controller | B152: Pakistan | C152: 48000 | D152: 48000 | E152: 48000
A153: Controller | B153: Portugal | C153: 19818.23125 | D153: 19818.23125 | E153: 19818.23125
A154: Controller | B154: Qatar | C154: 48000 | D154: 48000 | E154: 48000
A155: Controller | B155: Russia | C155: 24000 | D155: 24000 | E155: 24000
A156: Controller | B156: Saudi Arabia | C156: 14960 | D156: 42000 | E156: 28480
A157: Controller | B157: South Africa | C157: 9509.898829 | D157: 9509.898829 | E157: 9509.898829
A158: Controller | B158: Spain | C158: 35571.18429 | D158: 35571.18429 | E158: 35571.18429
A159: Controller | B159: Sri Lanka | C159: 13800 | D159: 13800 | E159: 13800
A160: Controller | B160: Switzerland | C160: 145000 | D160: 145000 | E160: 145000
A161: Controller | B161: UAE | C161: 55500 | D161: 85000 | E161: 70250
A162: Controller | B162: UK | C162: 67775.6657 | D162: 157617.8272 | E162: 109281.6935
A163: Controller | B163: USA | C163: 24000 | D163: 214000 | E163: 87813.23529
A164: CXO or Top Mgmt. | B164: Albania | C164: 20571 | D164: 20571 | E164: 20571
A165: CXO or Top Mgmt. | B165: Australia | C165: 71393.67595 | D165: 127488.7071 | E165: 95191.56793
A166: CXO or Top Mgmt. | B166: Canada | C166: 98336.1523 | D166: 98336.1523 | E166: 98336.1523
A167: CXO or Top Mgmt. | B167: Central America | C167: 95000 | D167: 95000 | E167: 95000
A168: CXO or Top Mgmt. | B168: Denmark | C168: 76906.90675 | D168: 76906.90675 | E168: 76906.90675
A169: CXO or Top Mgmt. | B169: India | C169: 2671.187503 | D169: 80135.62509 | E169: 28659.37181
A170: CXO or Top Mgmt. | B170: italy | C170: 69871.96914 | D170: 69871.96914 | E170: 69871.96914
A171: CXO or Top Mgmt. | B171: malaysia | C171: 35000 | D171: 35000 | E171: 35000
A172: CXO or Top Mgmt. | B172: Mexico | C172: 45000 | D172: 100000 | E172: 72500
A173: CXO or Top Mgmt. | B173: Oman | C173: 100800 | D173: 100800 | E173: 100800
A174: CXO or Top Mgmt. | B174: Portugal | C174: 44000 | D174: 44000 | E174: 44000
A175: CXO or Top Mgmt. | B175: South Africa | C175: 14630.61358 | D175: 125000 | E175: 69815.30679
A176: CXO or Top Mgmt. | B176: Spain | C176: 127039.9439 | D176: 127039.9439 | E176: 127039.9439
A177: CXO or Top Mgmt. | B177: Sweden | C177: 100000 | D177: 100000 | E177: 100000
A178: CXO or Top Mgmt. | B178: UK | C178: 55166.23952 | D178: 299473.8717 | E178: 114272.9247
A179: CXO or Top Mgmt. | B179: USA | C179: 16000 | D179: 300000 | E179: 125615.3846
A180: Engineer | B180: Australia | C180: 159105.9064 | D180: 168285.0933 | E180: 163695.4999
A181: Engineer | B181: Brazil | C181: 18000 | D181: 80000 | E181: 49000
A182: Engineer | B182: Canada | C182: 68835.30661 | D182: 68835.30661 | E182: 68835.30661
A183: Engineer | B183: Denmark | C183: 102542.5423 | D183: 102542.5423 | E183: 102542.5423
A184: Engineer | B184: Dominican Republic | C184: 6629 | D184: 6629 | E184: 6629
A185: Engineer | B185: Hungary | C185: 14000 | D185: 14000 | E185: 14000
A186: Engineer | B186: India | C186: 2671.187503 | D186: 40000 | E186: 12397.82557
A187: Engineer | B187: malaysia | C187: 11404.82044 | D187: 11404.82044 | E187: 11404.82044
A188: Engineer | B188: Mauritius | C188: 9376.251388 | D188: 9376.251388 | E188: 9376.251388
A189: Engineer | B189: mozambique | C189: 24000 | D189: 24000 | E189: 24000
A190: Engineer | B190: Netherlands | C190: 53356.77644 | D190: 76223.96634 | E190: 64790.37139
A191: Engineer | B191: New Zealand | C191: 39879.40468 | D191: 39879.40468 | E191: 39879.40468
A192: Engineer | B192: Portugal | C192: 63519.97195 | D192: 63519.97195 | E192: 63519.97195
A193: Engineer | B193: Saudi Arabia | C193: 57600 | D193: 57600 | E193: 57600
A194: Engineer | B194: Singapore | C194: 45000 | D194: 50000 | E194: 47500
A195: Engineer | B195: Spain | C195: 52086.377 | D195: 52086.377 | E195: 52086.377
A196: Engineer | B196: Thailand | C196: 138000 | D196: 138000 | E196: 138000
A197: Engineer | B197: UAE | C197: 36000 | D197: 36000 | E197: 36000
A198: Engineer | B198: UK | C198: 31523.56544 | D198: 231119.7486 | E198: 81372.72518
A199: Engineer | B199: USA | C199: 24000 | D199: 130000 | E199: 72056.15385
A200: Manager | B200: Argentina | C200: 24000 | D200: 24000 | E200: 24000
... 86 more rows

Sheet Number of respondents
A1: Job Type | B1: Count of Unique ID | E1: clean Country | F1: Count of Unique ID | I1: clean Country | J1: Count of Unique ID | M1: Job Type | N1: Average of Salary in USD | O1: Count of Unique ID
A2: Accountant | B2: 135 | E2: USA | F2: 617 | G2: =F2/$F$109 -> 0.3276686139 | I2: USA | J2: 617 | M2: Analyst | N2: 46295.76942 | O2: -743
A3: Analyst | B3: 743 | E3: India | F3: 565 | G3: =F3/$F$109 -> 0.3000531067 | I3: India | J3: 565 | M3: Manager | N3: 46488.24071 | O3: -558
A4: Consultant | B4: 90 | E4: UK | F4: 154 | G4: =F4/$F$109 -> 0.08178438662 | I4: UK | J4: 154 | M4: Accountant | N4: 54196.44058 | O4: -135
A5: Controller | B5: 67 | E5: Australia | F5: 81 | G5: =F5/$F$109 -> 0.04301646309 | I5: Australia | J5: 81 | M5: Consultant | N5: 62950.73322 | O5: -90
A6: CXO or Top Mgmt. | B6: 75 | E6: Canada | F6: 58 | G6: =F6/$F$109 -> 0.03080191184 | I6: Canada | J6: 58 | M6: Reporting | N6: 19574.15853 | O6: -83
A7: Engineer | B7: 74 | E7: Pakistan | F7: 29 | G7: =F7/$F$109 -> 0.01540095592 | I7: Pakistan | J7: 29 | M7: CXO or Top Mgmt. | N7: 97265.87562 | O7: -75
A8: Manager | B8: 558 | E8: Netherlands | F8: 23 | G8: =F8/$F$109 -> 0.01221455125 | I8: Other country | J8: =SUM(F8:F108) -> 379 | M8: Engineer | N8: 51715.15142 | O8: -74
A9: Misc. | B9: 7 | E9: South Africa | F9: 19 | G9: =F9/$F$109 -> 0.01009028147 | M9: Controller | N9: 65103.92903 | O9: -67
A10: Reporting | B10: 83 | E10: UAE | F10: 19 | G10: =F10/$F$109 -> 0.01009028147 | M10: Specialist | N10: 59812.96927 | O10: -51
A11: Specialist | B11: 51 | E11: Brazil | F11: 17 | G11: =F11/$F$109 -> 0.009028146575 | M11: Misc. | N11: 45952.33422 | O11: -7
A12: Grand Total | B12: 1883 | E12: Germany | F12: 17 | G12: =F12/$F$109 -> 0.009028146575
E13: New Zealand | F13: 15 | G13: =F13/$F$109 -> 0.007966011683
E14: Singapore | F14: 13 | G14: =F14/$F$109 -> 0.006903876792
E15: Philippines | F15: 11 | G15: =F15/$F$109 -> 0.005841741901
E16: Saudi Arabia | F16: 11 | G16: =F16/$F$109 -> 0.005841741901
E17: Mexico | F17: 10 | G17: =F17/$F$109 -> 0.005310674456
E18: Portugal | F18: 10 | G18: =F18/$F$109 -> 0.005310674456
E19: Spain | F19: 10 | G19: =F19/$F$109 -> 0.005310674456
E20: Russia | F20: 9 | G20: =F20/$F$109 -> 0.00477960701
E21: Indonesia | F21: 8 | G21: =F21/$F$109 -> 0.004248539565
E22: malaysia | F22: 7 | G22: =F22/$F$109 -> 0.003717472119
E23: Norway | F23: 7 | G23: =F23/$F$109 -> 0.003717472119
E24: Denmark | F24: 6 | G24: =F24/$F$109 -> 0.003186404673
E25: France | F25: 6 | G25: =F25/$F$109 -> 0.003186404673
E26: italy | F26: 6 | G26: =F26/$F$109 -> 0.003186404673
E27: Poland | F27: 6 | G27: =F27/$F$109 -> 0.003186404673
E28: Romania | F28: 6 | G28: =F28/$F$109 -> 0.003186404673
E29: Colombia | F29: 5 | G29: =F29/$F$109 -> 0.002655337228
E30: Europe | F30: 5 | G30: =F30/$F$109 -> 0.002655337228
E31: Hungary | F31: 5 | G31: =F31/$F$109 -> 0.002655337228
E32: Ireland | F32: 5 | G32: =F32/$F$109 -> 0.002655337228
E33: Israel | F33: 5 | G33: =F33/$F$109 -> 0.002655337228
E34: Sri Lanka | F34: 5 | G34: =F34/$F$109 -> 0.002655337228
E35: Belgium | F35: 4 | G35: =F35/$F$109 -> 0.002124269782
E36: Dubai | F36: 4 | G36: =F36/$F$109 -> 0.002124269782
E37: Switzerland | F37: 4 | G37: =F37/$F$109 -> 0.002124269782
E38: Ukraine | F38: 4 | G38: =F38/$F$109 -> 0.002124269782
E39: Brasil | F39: 3 | G39: =F39/$F$109 -> 0.001593202337
E40: Croatia | F40: 3 | G40: =F40/$F$109 -> 0.001593202337
E41: Finland | F41: 3 | G41: =F41/$F$109 -> 0.001593202337
E42: Greece | F42: 3 | G42: =F42/$F$109 -> 0.001593202337
E43: iran | F43: 3 | G43: =F43/$F$109 -> 0.001593202337
E44: Japan | F44: 3 | G44: =F44/$F$109 -> 0.001593202337
E45: Kuwait | F45: 3 | G45: =F45/$F$109 -> 0.001593202337
E46: Nigeria | F46: 3 | G46: =F46/$F$109 -> 0.001593202337
E47: Qatar | F47: 3 | G47: =F47/$F$109 -> 0.001593202337
E48: Bangladesh | F48: 2 | G48: =F48/$F$109 -> 0.001062134891
E49: CEE | F49: 2 | G49: =F49/$F$109 -> 0.001062134891
E50: china | F50: 2 | G50: =F50/$F$109 -> 0.001062134891
E51: Myanmar | F51: 2 | G51: =F51/$F$109 -> 0.001062134891
E52: Panama | F52: 2 | G52: =F52/$F$109 -> 0.001062134891
E53: Sweden | F53: 2 | G53: =F53/$F$109 -> 0.001062134891
E54: Thailand | F54: 2 | G54: =F54/$F$109 -> 0.001062134891
E55: Turkey | F55: 2 | G55: =F55/$F$109 -> 0.001062134891
E56: Zambia | F56: 2 | G56: =F56/$F$109 -> 0.001062134891
E57: Albania | F57: 1 | G57: =F57/$F$109 -> 0.0005310674456
E58: arabian Gulf | F58: 1 | G58: =F58/$F$109 -> 0.0005310674456
E59: Argentina | F59: 1 | G59: =F59/$F$109 -> 0.0005310674456
E60: Armenia | F60: 1 | G60: =F60/$F$109 -> 0.0005310674456
E61: Aruba | F61: 1 | G61: =F61/$F$109 -> 0.0005310674456
E62: Asia | F62: 1 | G62: =F62/$F$109 -> 0.0005310674456
E63: Austria | F63: 1 | G63: =F63/$F$109 -> 0.0005310674456
E64: Azerbaijan | F64: 1 | G64: =F64/$F$109 -> 0.0005310674456
E65: Baltic | F65: 1 | G65: =F65/$F$109 -> 0.0005310674456
E66: Bermuda | F66: 1 | G66: =F66/$F$109 -> 0.0005310674456
E67: Bhutan | F67: 1 | G67: =F67/$F$109 -> 0.0005310674456
E68: Bolivia | F68: 1 | G68: =F68/$F$109 -> 0.0005310674456
E69: Bulgaria | F69: 1 | G69: =F69/$F$109 -> 0.0005310674456
E70: Cambodia | F70: 1 | G70: =F70/$F$109 -> 0.0005310674456
E71: Central America | F71: 1 | G71: =F71/$F$109 -> 0.0005310674456
E72: Costa Rica | F72: 1 | G72: =F72/$F$109 -> 0.0005310674456
E73: Czech Republic | F73: 1 | G73: =F73/$F$109 -> 0.0005310674456
E74: Dominican Republic | F74: 1 | G74: =F74/$F$109 -> 0.0005310674456
E75: Egypt | F75: 1 | G75: =F75/$F$109 -> 0.0005310674456
E76: Estonia | F76: 1 | G76: =F76/$F$109 -> 0.0005310674456
E77: Ethiopia | F77: 1 | G77: =F77/$F$109 -> 0.0005310674456
E78: Ghana | F78: 1 | G78: =F78/$F$109 -> 0.0005310674456
E79: Guyana | F79: 1 | G79: =F79/$F$109 -> 0.0005310674456
E80: Hong Kong | F80: 1 | G80: =F80/$F$109 -> 0.0005310674456
E81: Iceland | F81: 1 | G81: =F81/$F$109 -> 0.0005310674456
E82: Kenya | F82: 1 | G82: =F82/$F$109 -> 0.0005310674456
E83: Kuwait | F83: 1 | G83: =F83/$F$109 -> 0.0005310674456
E84: Latin America | F84: 1 | G84: =F84/$F$109 -> 0.0005310674456
E85: Lesotho | F85: 1 | G85: =F85/$F$109 -> 0.0005310674456
E86: Libya | F86: 1 | G86: =F86/$F$109 -> 0.0005310674456
E87: Lithuania | F87: 1 | G87: =F87/$F$109 -> 0.0005310674456
E88: Mauritius | F88: 1 | G88: =F88/$F$109 -> 0.0005310674456
E89: Mongolia | F89: 1 | G89: =F89/$F$109 -> 0.0005310674456
E90: Montenegro | F90: 1 | G90: =F90/$F$109 -> 0.0005310674456
E91: Morocco | F91: 1 | G91: =F91/$F$109 -> 0.0005310674456
E92: mozambique | F92: 1 | G92: =F92/$F$109 -> 0.0005310674456
E93: MYS | F93: 1 | G93: =F93/$F$109 -> 0.0005310674456
E94: Oman | F94: 1 | G94: =F94/$F$109 -> 0.0005310674456
E95: Paraguay | F95: 1 | G95: =F95/$F$109 -> 0.0005310674456
E96: Peru | F96: 1 | G96: =F96/$F$109 -> 0.0005310674456
E97: Republic of Georgia | F97: 1 | G97: =F97/$F$109 -> 0.0005310674456
E98: Republica Dominicana | F98: 1 | G98: =F98/$F$109 -> 0.0005310674456
E99: self-employed | F99: 1 | G99: =F99/$F$109 -> 0.0005310674456
E100: Slovakia | F100: 1 | G100: =F100/$F$109 -> 0.0005310674456
E101: Slovenia | F101: 1 | G101: =F101/$F$109 -> 0.0005310674456
E102: Somalia | F102: 1 | G102: =F102/$F$109 -> 0.0005310674456
E103: Tunisia | F103: 1 | G103: =F103/$F$109 -> 0.0005310674456
E104: Uganda | F104: 1 | G104: =F104/$F$109 -> 0.0005310674456
E105: Uruguay | F105: 1 | G105: =F105/$F$109 -> 0.0005310674456
E106: Viet Nam | F106: 1 | G106: =F106/$F$109 -> 0.0005310674456
E107: Vietnam | F107: 1 | G107: =F107/$F$109 -> 0.0005310674456
E108: Zimbabwe | F108: 1 | G108: =F108/$F$109 -> 0.0005310674456
E109: Grand Total | F109: 1883 | G109: =F109/$F$109 -> 1

Sheet Hours&Salary
A1: Job Type | B1: How many hours of a day you work on Excel | C1: Average of Salary in USD | E1: Job Type | F1: Reporting
A2: Accountant | B2: 1 or 2 hours a day | C2: 21800.49327
A3: Accountant | B3: 2 to 3 hours per day | C3: 37590.17338 | E3: Row Labels | F3: Average of Average of Salary in USD
A4: Accountant | B4: 4 to 6 hours a day | C4: 69577.60892 | E4: 1 or 2 hours a day | F4: 13071.86563
A5: Accountant | B5: All the 8 hours baby, all the 8! | C5: 49121.80239 | E5: 2 to 3 hours per day | F5: 29495.90028
A6: Analyst | B6: Excel ?!? What Excel? | C6: 63090.73411 | E6: 4 to 6 hours a day | F6: 17890.78453
A7: Analyst | B7: 1 or 2 hours a day | C7: 43819.27661 | E7: All the 8 hours baby, all the 8! | F7: 18372.10962
A8: Analyst | B8: 2 to 3 hours per day | C8: 48572.5118 | E8: Grand Total | F8: 19707.66502
A9: Analyst | B9: 4 to 6 hours a day | C9: 47705.91095
A10: Analyst | B10: All the 8 hours baby, all the 8! | C10: 42953.14149
A11: Consultant | B11: 1 or 2 hours a day | C11: 45623.74361
A12: Consultant | B12: 2 to 3 hours per day | C12: 64408.61623
A13: Consultant | B13: 4 to 6 hours a day | C13: 62042.01453 | E13: How many hours of a day you work on Excel | F13: Average of Salary in USD | G13: Count of Unique ID
A14: Consultant | B14: All the 8 hours baby, all the 8! | C14: 70732.90609 | E14: Excel ?!? What Excel? | F14: 57493.38151 | G14: 7
A15: Controller | B15: 1 or 2 hours a day | C15: 37497.74141 | E15: 1 or 2 hours a day | F15: 49726.37559 | G15: 174
A16: Controller | B16: 2 to 3 hours per day | C16: 77495.72881 | E16: 2 to 3 hours per day | F16: 53554.66215 | G16: 451
A17: Controller | B17: 4 to 6 hours a day | C17: 63312.75711 | E17: 4 to 6 hours a day | F17: 51423.2508 | G17: 775
A18: Controller | B18: All the 8 hours baby, all the 8! | C18: 60376.61241 | E18: All the 8 hours baby, all the 8! | F18: 43571.1628 | G18: 476
A19: CXO or Top Mgmt. | B19: 1 or 2 hours a day | C19: 79353.15065 | E19: Grand Total | F19: 49814.59826 | G19: 1883
A20: CXO or Top Mgmt. | B20: 2 to 3 hours per day | C20: 120604.4868
A21: CXO or Top Mgmt. | B21: 4 to 6 hours a day | C21: 92455.11059
A22: CXO or Top Mgmt. | B22: All the 8 hours baby, all the 8! | C22: 80867.90146
A23: Engineer | B23: 1 or 2 hours a day | C23: 35352.12819 | E23: How many hours of a day you work on Excel | F23: Average of Salary in USD | G23: Count of Unique ID
A24: Engineer | B24: 2 to 3 hours per day | C24: 66672.18129 | F24: 57493.38151 | G24: -7
A25: Engineer | B25: 4 to 6 hours a day | C25: 48909.2063 | E25: 1 or 2 hours a day | F25: 49726.37559 | G25: -174
A26: Engineer | B26: All the 8 hours baby, all the 8! | C26: 40859.41667 | E26: 2 to 3 hours per day | F26: 53554.66215 | G26: -451
A27: Manager | B27: Excel ?!? What Excel? | C27: 43500 | E27: 4 to 6 hours a day | F27: 51423.2508 | G27: -775
A28: Manager | B28: 1 or 2 hours a day | C28: 57523.37251 | E28: All the 8 hours baby, all the 8! | F28: 43571.1628 | G28: -476
A29: Manager | B29: 2 to 3 hours per day | C29: 48023.28191
A30: Manager | B30: 4 to 6 hours a day | C30: 47649.8932
A31: Manager | B31: All the 8 hours baby, all the 8! | C31: 35434.79337
A32: Misc. | B32: 1 or 2 hours a day | C32: 82230.5
A33: Misc. | B33: 2 to 3 hours per day | C33: 41712.23119
A34: Misc. | B34: 4 to 6 hours a day | C34: 31497.70278
A35: Misc. | B35: All the 8 hours baby, all the 8! | C35: 21000
A36: Reporting | B36: 1 or 2 hours a day | C36: 13071.86563
A37: Reporting | B37: 2 to 3 hours per day | C37: 29495.90028
A38: Reporting | B38: 4 to 6 hours a day | C38: 17890.78453
A39: Reporting | B39: All the 8 hours baby, all the 8! | C39: 18372.10962
A40: Specialist | B40: 1 or 2 hours a day | C40: 50194.80732
A41: Specialist | B41: 2 to 3 hours per day | C41: 52440.78414
A42: Specialist | B42: 4 to 6 hours a day | C42: 49273.75021
A43: Specialist | B43: All the 8 hours baby, all the 8! | C43: 90591.37827

Sheet Position&Salary

Sheet Salary as is
A1: Salary in USD | B1: Job Type | C1: clean Country | D1: Country group | F1: Mark | G1: Sum of Salary | H1: Num of resp | I1: Share of resp | J1: Salary levels in USD
A2: 1783.166904 | B2: Accountant | C2: Pakistan | D2: Pakistan | F2: 60000 | G2: =SUMIF(A:A,"<"&F2,A:A) -> 30665833.14 | H2: =COUNTIF(A:A,"<"&F2) -> 1222 | I2: =H2/$H$6 -> 0.6489644185 | J2: up to 60 000
A3: 1805.773962 | B3: Manager | C3: Sri Lanka | D3: Other country | F3: 90000 | G3: =SUMIFS(A:A,A:A,"<"&F3,A:A,">="&F2) -> 27880847.89 | H3: =COUNTIFS(A:A,"<"&F3,A:A,">="&F2) -> 387 | I3: =H3/$H$6 -> 0.2055231014 | J3: 60 001-90 000
A4: 1910.535969 | B4: Reporting | C4: Pakistan | D4: Pakistan | F4: 120000 | G4: =SUMIFS(A:A,A:A,"<"&F4,A:A,">="&F3) -> 16292840.69 | H4: =COUNTIFS(A:A,"<"&F4,A:A,">="&F3) -> 162 | I4: =H4/$H$6 -> 0.08603292618 | J4: 90 001-120 000
A5: 2122.817743 | B5: Accountant | C5: Pakistan | D5: Pakistan | F5: 150000000 | G5: =SUMIFS(A:A,A:A,"<"&F5,A:A,">="&F4) -> 18961366.79 | H5: =COUNTIFS(A:A,"<"&F5,A:A,">="&F4) -> 112 | I5: =H5/$H$6 -> 0.0594795539 | J5: from 120 001
A6: 2136.950002 | B6: Analyst | C6: India | D6: India | F6: Total | G6: =SUM(G2:G5) -> 93800888.52 | H6: =COUNT(A:A) -> 1883 | I6: =H6/$H$6 -> 1
A7: 2136.950002 | B7: Analyst | C7: India | D7: India
A8: 2136.950002 | B8: Accountant | C8: India | D8: India
A9: 2136.950002 | B9: Manager | C9: India | D9: India
A10: 2136.950002 | B10: Analyst | C10: India | D10: India | F10: Row Labels | G10: Sum of Salary in USD | H10: Count of Job Type | I10: %
A11: 2165.274098 | B11: Manager | C11: Pakistan | D11: Pakistan | F11: USA | G11: 44879426 | H11: 617 | I11: =G11/$G$18 -> 0.4784541672
A12: 2225.989586 | B12: Analyst | C12: India | D12: India | F12: India | G12: 7644128.455 | H12: 565 | I12: =G12/$G$18 -> 0.08149313483
A13: 2225.989586 | B13: Analyst | C13: India | D13: India | F13: UK | G13: 10355072.44 | H13: 154 | I13: 0.1103941828
A14: 2400 | B14: Accountant | C14: Pakistan | D14: Pakistan | F14: Australia | G14: 7521468.018 | H14: 81 | I14: 0.08018546665
A15: 2400 | B15: Analyst | C15: India | D15: India | F15: Canada | G15: 5208372.557 | H15: 58 | I15: 0.05552583391
A16: 2493.108336 | B16: Accountant | C16: India | D16: India | F16: Pakistan | G16: 344333.025 | H16: 29 | I16: 0.003670893
A17: 2493.108336 | B17: Misc. | C17: India | D17: India | F17: Other country | G17: 17848088.02 | H17: 379 | I17: 0.1902763215
A18: 2564.340003 | B18: Consultant | C18: India | D18: India | F18: Grand Total | G18: 93800888.52 | H18: 1883 | I18: 1
A19: 2564.340003 | B19: Manager | C19: India | D19: India
A20: 2564.340003 | B20: Analyst | C20: India | D20: India
A21: 2564.340003 | B21: Analyst | C21: India | D21: India
A22: 2564.340003 | B22: Controller | C22: India | D22: India
A23: 2671.187503 | B23: Manager | C23: India | D23: India | F23: USA | G23: 72738.12966 | H23: 0.3276686139
A24: 2671.187503 | B24: CXO or Top Mgmt. | C24: India | D24: India | F24: India | G24: 13529.43089 | H24: 0.3000531067
A25: 2671.187503 | B25: Analyst | C25: India | D25: India | F25: UK | G25: 67240.73011 | H25: 0.08178438662
A26: 2671.187503 | B26: Reporting | C26: India | D26: India | F26: Australia | G26: 92857.62985 | H26: 0.04301646309
A27: 2671.187503 | B27: Engineer | C27: India | D27: India | F27: Canada | G27: 89799.52684 | H27: 0.03080191184
A28: 2675.675098 | B28: Manager | C28: India | D28: India | F28: Pakistan | G28: 11873.55259 | H28: 0.01540095592
A29: 2849.26667 | B29: Reporting | C29: India | D29: India | F29: Other country | G29: 47092.58054 | H29: 0.2012745619
A30: 2938.306253 | B30: Manager | C30: India | D30: India
A31: 2953.846154 | B31: Reporting | C31: Ethiopia | D31: Other country
A32: 3000 | B32: Consultant | C32: Cambodia | D32: Other country
A33: 3000 | B33: Analyst | C33: Pakistan | D33: Pakistan
A34: 3000 | B34: Accountant | C34: Sri Lanka | D34: Other country
A35: 3000 | B35: Analyst | C35: Bangladesh | D35: Other country
A36: 3027.345837 | B36: Reporting | C36: India | D36: India
A37: 3184.226615 | B37: Manager | C37: Pakistan | D37: Pakistan
A38: 3200 | B38: Manager | C38: India | D38: India
A39: 3205.425004 | B39: Analyst | C39: India | D39: India
A40: 3205.425004 | B40: Analyst | C40: India | D40: India
A41: 3205.425004 | B41: Manager | C41: India | D41: India
A42: 3205.425004 | B42: Accountant | C42: India | D42: India
A43: 3205.425004 | B43: Manager | C43: India | D43: India
A44: 3205.425004 | B44: Accountant | C44: India | D44: India
A45: 3205.425004 | B45: Analyst | C45: India | D45: India
A46: 3205.425004 | B46: Reporting | C46: India | D46: India
A47: 3205.425004 | B47: Analyst | C47: India | D47: India
A48: 3205.425004 | B48: Reporting | C48: India | D48: India
A49: 3205.425004 | B49: Analyst | C49: India | D49: India
A50: 3205.425004 | B50: Manager | C50: India | D50: India
A51: 3205.425004 | B51: Reporting | C51: India | D51: India
A52: 3205.425004 | B52: Analyst | C52: India | D52: India
A53: 3360 | B53: Analyst | C53: India | D53: India
A54: 3419.120004 | B54: Analyst | C54: India | D54: India
A55: 3419.120004 | B55: Analyst | C55: India | D55: India
A56: 3480 | B56: Manager | C56: Pakistan | D56: Pakistan
A57: 3500 | B57: Manager | C57: Pakistan | D57: Pakistan
A58: 3561.583337 | B58: Analyst | C58: India | D58: India
A59: 3561.583337 | B59: Consultant | C59: India | D59: India
A60: 3561.583337 | B60: Analyst | C60: India | D60: India
A61: 3561.583337 | B61: Accountant | C61: India | D61: India
A62: 3561.583337 | B62: Reporting | C62: India | D62: India
A63: 3561.583337 | B63: Reporting | C63: India | D63: India
A64: 3561.583337 | B64: Analyst | C64: India | D64: India
A65: 3561.583337 | B65: Manager | C65: India | D65: India
A66: 3561.583337 | B66: Manager | C66: India | D66: India
A67: 3561.583337 | B67: Reporting | C67: India | D67: India
A68: 3561.583337 | B68: Reporting | C68: India | D68: India
A69: 3561.583337 | B69: Analyst | C69: India | D69: India
A70: 3561.583337 | B70: Reporting | C70: India | D70: India
A71: 3561.583337 | B71: Analyst | C71: India | D71: India
A72: 3561.583337 | B72: Accountant | C72: India | D72: India
A73: 3561.583337 | B73: Analyst | C73: India | D73: India
A74: 3600 | B74: Analyst | C74: India | D74: India
A75: 3632.815004 | B75: Manager | C75: India | D75: India
A76: 3632.815004 | B76: Reporting | C76: India | D76: India
A77: 3650.622921 | B77: Accountant | C77: India | D77: India
A78: 3739.662504 | B78: Reporting | C78: India | D78: India
A79: 3739.662504 | B79: Analyst | C79: India | D79: India
A80: 3739.662504 | B80: Reporting | C80: India | D80: India
A81: 3800 | B81: Reporting | C81: India | D81: India
A82: 3917.741671 | B82: Analyst | C82: India | D82: India
A83: 3917.741671 | B83: Engineer | C83: India | D83: India
A84: 3982.448779 | B84: Analyst | C84: Philippines | D84: Other country
A85: 4000 | B85: Reporting | C85: India | D85: India
A86: 4000 | B86: Reporting | C86: India | D86: India
A87: 4000 | B87: Manager | C87: India | D87: India
A88: 4000 | B88: Analyst | C88: India | D88: India
A89: 4000 | B89: Analyst | C89: India | D89: India
A90: 4006.781255 | B90: Reporting | C90: India | D90: India
A91: 4019 | B91: Specialist | C91: Philippines | D91: Other country
A92: 4095.820838 | B92: Reporting | C92: India | D92: India
A93: 4095.820838 | B93: Analyst | C93: India | D93: India
A94: 4149.244588 | B94: Manager | C94: India | D94: India
A95: 4200 | B95: Reporting | C95: India | D95: India
A96: 4273.900005 | B96: Manager | C96: India | D96: India
A97: 4273.900005 | B97: Analyst | C97: India | D97: India
A98: 4273.900005 | B98: Accountant | C98: India | D98: India
A99: 4273.900005 | B99: Analyst | C99: India | D99: India
A100: 4273.900005 | B100: Analyst | C100: India | D100: India
A101: 4273.900005 | B101: Manager | C101: India | D101: India
A102: 4273.900005 | B102: Analyst | C102: India | D102: India
A103: 4273.900005 | B103: Accountant | C103: India | D103: India
A104: 4273.900005 | B104: Controller | C104: India | D104: India
A105: 4285 | B105: Analyst | C105: India | D105: India
A106: 4314.929445 | B106: Accountant | C106: India | D106: India
A107: 4320 | B107: Accountant | C107: India | D107: India
A108: 4356 | B108: Analyst | C108: India | D108: India
A109: 4400 | B109: Manager | C109: Latin America | D109: Other country
A110: 4451.979172 | B110: Manager | C110: India | D110: India
A111: 4451.979172 | B111: Reporting | C111: India | D111: India
A112: 4451.979172 | B112: Manager | C112: India | D112: India
A113: 4451.979172 | B113: Reporting | C113: India | D113: India
A114: 4451.979172 | B114: Reporting | C114: India | D114: India
A115: 4451.979172 | B115: Manager | C115: India | D115: India
A116: 4451.979172 | B116: Analyst | C116: India | D116: India
A117: 4451.979172 | B117: Manager | C117: India | D117: India
A118: 4451.979172 | B118: Manager | C118: India | D118: India
A119: 4451.979172 | B119: Engineer | C119: India | D119: India
A120: 4451.979172 | B120: Reporting | C120: India | D120: India
A121: 4451.979172 | B121: Analyst | C121: India | D121: India
A122: 4457.917261 | B122: Manager | C122: Pakistan | D122: Pakistan
A123: 4487.595005 | B123: Accountant | C123: India | D123: India
A124: 4487.595005 | B124: Manager | C124: India | D124: India
A125: 4500 | B125: Analyst | C125: Indonesia | D125: Other country
A126: 4500 | B126: Analyst | C126: Pakistan | D126: Pakistan
A127: 4545 | B127: Analyst | C127: Brasil | D127: Other country
A128: 4594.442505 | B128: Analyst | C128: India | D128: India
A129: 4630.058339 | B129: Analyst | C129: India | D129: India
A130: 4800 | B130: Analyst | C130: Bhutan | D130: Other country
A131: 4800 | B131: Analyst | C131: India | D131: India
A132: 4800 | B132: Manager | C132: India | D132: India
A133: 4808.137506 | B133: Manager | C133: India | D133: India
A134: 4840.024455 | B134: Manager | C134: Pakistan | D134: Pakistan
A135: 4897.177089 | B135: Analyst | C135: India | D135: India
A136: 4897.177089 | B136: Manager | C136: India | D136: India
A137: 4914.985006 | B137: Analyst | C137: India | D137: India
A138: 4914.985006 | B138: Manager | C138: Pakistan | D138: Pakistan
A139: 4914.985006 | B139: Reporting | C139: India | D139: India
A140: 4950.600839 | B140: Reporting | C140: India | D140: India
A141: 4957.724006 | B141: Manager | C141: India | D141: India
A142: 4986.216672 | B142: Analyst | C142: India | D142: India
A143: 5000 | B143: Reporting | C143: India | D143: India
A144: 5000 | B144: Manager | C144: India | D144: India
A145: 5000 | B145: Consultant | C145: Aruba | D145: Other country
A146: 5000 | B146: Manager | C146: India | D146: India
A147: 5000 | B147: Analyst | C147: India | D147: India
A148: 5000 | B148: Analyst | C148: India | D148: India
A149: 5000 | B149: Misc. | C149: India | D149: India
A150: 5022 | B150: Analyst | C150: Pakistan | D150: Pakistan
A151: 5082.694379 | B151: Analyst | C151: Indonesia | D151: Other country
A152: 5100 | B152: Reporting | C152: India | D152: India
A153: 5120.291288 | B153: Manager | C153: Philippines | D153: Other country
A154: 5250 | B154: Specialist | C154: Republic of Georgia | D154: Other country
A155: 5300 | B155: Manager | C155: Pakistan | D155: Pakistan
A156: 5320 | B156: Manager | C156: India | D156: India
A157: 5342.375006 | B157: Engineer | C157: India | D157: India
A158: 5342.375006 | B158: Manager | C158: India | D158: India
A159: 5342.375006 | B159: Engineer | C159: India | D159: India
A160: 5342.375006 | B160: Reporting | C160: India | D160: India
A161: 5342.375006 | B161: Analyst | C161: India | D161: India
A162: 5342.375006 | B162: Manager | C162: India | D162: India
A163: 5342.375006 | B163: Analyst | C163: India | D163: India
A164: 5342.375006 | B164: Controller | C164: India | D164: India
A165: 5342.375006 | B165: Analyst | C165: India | D165: India
A166: 5342.375006 | B166: Analyst | C166: India | D166: India
A167: 5342.375006 | B167: Accountant | C167: India | D167: India
A168: 5342.375006 | B168: Consultant | C168: India | D168: India
A169: 5342.375006 | B169: Analyst | C169: India | D169: India
A170: 5342.375006 | B170: Analyst | C170: India | D170: India
A171: 5342.375006 | B171: Reporting | C171: India | D171: India
A172: 5342.375006 | B172: Analyst | C172: India | D172: India
A173: 5342.375006 | B173: Accountant | C173: India | D173: India
A174: 5342.375006 | B174: Analyst | C174: India | D174: India
A175: 5400 | B175: Manager | C175: India | D175: India
A176: 5591.68584 | B176: Manager | C176: India | D176: India
A177: 5689.212542 | B177: Manager | C177: Philippines | D177: Other country
A178: 5698.53334 | B178: Analyst | C178: India | D178: India
A179: 5698.53334 | B179: Manager | C179: India | D179: India
A180: 5698.53334 | B180: Analyst | C180: India | D180: India
A181: 5787.572923 | B181: Reporting | C181: India | D181: India
A182: 5800 | B182: Manager | C182: India | D182: India
A183: 5846 | B183: Analyst | C183: India | D183: India
A184: 5983.460007 | B184: Reporting | C184: India | D184: India
A185: 6000 | B185: Reporting | C185: India | D185: India
A186: 6000 | B186: Manager | C186: Guyana | D186: Other country
A187: 6000 | B187: Manager | C187: India | D187: India
A188: 6000 | B188: Analyst | C188: Colombia | D188: Other country
A189: 6000 | B189: Manager | C189: India | D189: India
A190: 6000 | B190: Accountant | C190: Zambia | D190: Other country
A191: 6000 | B191: Manager | C191: India | D191: India
A192: 6000 | B192: Analyst | C192: India | D192: India
A193: 6000 | B193: Reporting | C193: Armenia | D193: Other country
A194: 6054.691674 | B194: Manager | C194: India | D194: India
A195: 6232.770841 | B195: Accountant | C195: India | D195: India
A196: 6232.770841 | B196: Analyst | C196: India | D196: India
A197: 6232.770841 | B197: Accountant | C197: India | D197: India
A198: 6232.770841 | B198: Analyst | C198: India | D198: India
A199: 6232.770841 | B199: Analyst | C199: India | D199: India
A200: 6232.770841 | B200: Manager | C200: India | D200: India
... 1684 more rows

Sheet start
A1: Unique ID | B1: clean Salary (in local currency) | C1: Currency | D1: Salary in USD | E1: Job Type | F1: clean Country | G1: How many hours of a day you work on Excel | H1: Years of Experience
A2: ID0001 | B2: 5846 | C2: USD | D2: 5846 | E2: Analyst | F2: India | G2: 4 to 6 hours a day | H2: n/a
A3: ID0002 | B3: 15000 | C3: USD | D3: 15000 | E3: Controller | F3: Croatia | G3: All the 8 hours baby, all the 8! | H3: n/a
A4: ID0003 | B4: 58000 | C4: USD | D4: 58000 | E4: Analyst | F4: USA | G4: All the 8 hours baby, all the 8! | H4: n/a
A5: ID0004 | B5: 48000 | C5: USD | D5: 48000 | E5: Controller | F5: Pakistan | G5: 2 to 3 hours per day | H5: n/a
A6: ID0005 | B6: 54000 | C6: USD | D6: 54000 | E6: Engineer | F6: USA | G6: All the 8 hours baby, all the 8! | H6: n/a
A7: ID0006 | B7: 41731 | C7: USD | D7: 41731 | E7: Analyst | F7: Iceland | G7: All the 8 hours baby, all the 8! | H7: n/a
A8: ID0007 | B8: 145000 | C8: EUR | D8: 184207.9187 | E8: Manager | F8: Germany | G8: 1 or 2 hours a day | H8: n/a
A9: ID0008 | B9: 12000 | C9: USD | D9: 12000 | E9: Analyst | F9: Ukraine | G9: All the 8 hours baby, all the 8! | H9: n/a
A10: ID0009 | B10: 44000 | C10: USD | D10: 44000 | E10: CXO or Top Mgmt. | F10: Portugal | G10: 1 or 2 hours a day | H10: n/a
A11: ID0010 | B11: 1152000 | C11: PKR | D11: 12227.4302 | E11: Accountant | F11: Pakistan | G11: All the 8 hours baby, all the 8! | H11: n/a
A12: ID0011 | B12: 51650 | C12: EUR | D12: 65616.13102 | E12: Specialist | F12: Ireland | G12: 2 to 3 hours per day | H12: n/a
A13: ID0012 | B13: 14000 | C13: USD | D13: 14000 | E13: Engineer | F13: Hungary | G13: 4 to 6 hours a day | H13: n/a
A14: ID0013 | B14: 749000 | C14: INR | D14: 13338.1296 | E14: Analyst | F14: India | G14: All the 8 hours baby, all the 8! | H14: n/a
A15: ID0014 | B15: 49000 | C15: USD | D15: 49000 | E15: Analyst | F15: USA | G15: All the 8 hours baby, all the 8! | H15: n/a
A16: ID0015 | B16: 85000 | C16: USD | D16: 85000 | E16: Engineer | F16: USA | G16: 1 or 2 hours a day | H16: n/a
A17: ID0016 | B17: 75000 | C17: USD | D17: 75000 | E17: Engineer | F17: USA | G17: All the 8 hours baby, all the 8! | H17: n/a
A18: ID0017 | B18: 107000 | C18: USD | D18: 107000 | E18: Manager | F18: Switzerland | G18: 4 to 6 hours a day | H18: n/a
A19: ID0018 | B19: 45000 | C19: USD | D19: 45000 | E19: Reporting | F19: South Africa | G19: All the 8 hours baby, all the 8! | H19: n/a
A20: ID0019 | B20: 550000 | C20: INR | D20: 9794.354178 | E20: Manager | F20: India | G20: 2 to 3 hours per day | H20: n/a
A21: ID0020 | B21: 50000 | C21: USD | D21: 50000 | E21: Manager | F21: India | G21: 1 or 2 hours a day | H21: n/a
A22: ID0021 | B22: 13500 | C22: USD | D22: 13500 | E22: Manager | F22: India | G22: 4 to 6 hours a day | H22: n/a
A23: ID0022 | B23: 96000 | C23: USD | D23: 96000 | E23: Analyst | F23: USA | G23: 2 to 3 hours per day | H23: n/a
A24: ID0023 | B24: 1000000 | C24: INR | D24: 17807.91669 | E24: Manager | F24: India | G24: 4 to 6 hours a day | H24: n/a
A25: ID0024 | B25: 75000 | C25: USD | D25: 75000 | E25: CXO or Top Mgmt. | F25: USA | G25: 4 to 6 hours a day | H25: n/a
A26: ID0025 | B26: 40000 | C26: USD | D26: 40000 | E26: Manager | F26: USA | G26: 2 to 3 hours per day | H26: n/a
A27: ID0026 | B27: 60000 | C27: USD | D27: 60000 | E27: Analyst | F27: USA | G27: All the 8 hours baby, all the 8! | H27: n/a
A28: ID0028 | B28: 32400 | C28: EUR | D28: 41160.94182 | E28: Manager | F28: Belgium | G28: 4 to 6 hours a day | H28: n/a
A29: ID0029 | B29: 900000 | C29: INR | D29: 16027.12502 | E29: Engineer | F29: India | G29: 1 or 2 hours a day | H29: n/a
A30: ID0030 | B30: 600000 | C30: INR | D30: 10684.75001 | E30: Manager | F30: India | G30: 4 to 6 hours a day | H30: n/a
A31: ID0031 | B31: 41000 | C31: USD | D31: 41000 | E31: Manager | F31: Russia | G31: All the 8 hours baby, all the 8! | H31: n/a
A32: ID0032 | B32: 360000 | C32: INR | D32: 6410.850007 | E32: Specialist | F32: India | G32: 4 to 6 hours a day | H32: n/a
A33: ID0033 | B33: 35000 | C33: GBP | D33: 55166.23952 | E33: Analyst | F33: UK | G33: All the 8 hours baby, all the 8! | H33: n/a
A34: ID0035 | B34: 19200 | C34: USD | D34: 19200 | E34: Analyst | F34: Poland | G34: 2 to 3 hours per day | H34: n/a
A35: ID0036 | B35: 500000 | C35: INR | D35: 8903.958344 | E35: Consultant | F35: India | G35: All the 8 hours baby, all the 8! | H35: n/a
A36: ID0037 | B36: 150000 | C36: USD | D36: 150000 | E36: Manager | F36: USA | G36: 2 to 3 hours per day | H36: n/a
A37: ID0038 | B37: 69000 | C37: USD | D37: 69000 | E37: Engineer | F37: USA | G37: 4 to 6 hours a day | H37: n/a
A38: ID0039 | B38: 30000 | C38: USD | D38: 30000 | E38: Consultant | F38: USA | G38: 2 to 3 hours per day | H38: n/a
A39: ID0040 | B39: 400000 | C39: INR | D39: 7123.166675 | E39: Manager | F39: India | G39: 4 to 6 hours a day | H39: n/a
A40: ID0041 | B40: 70000 | C40: AUD | D40: 71393.67595 | E40: Consultant | F40: Australia | G40: 2 to 3 hours per day | H40: n/a
A41: ID0042 | B41: 14500 | C41: USD | D41: 14500 | E41: Analyst | F41: India | G41: 4 to 6 hours a day | H41: n/a
A42: ID0043 | B42: 70000 | C42: CAD | D42: 68835.30661 | E42: Engineer | F42: Canada | G42: 2 to 3 hours per day | H42: n/a
A43: ID0044 | B43: 58000 | C43: USD | D43: 58000 | E43: Accountant | F43: USA | G43: 4 to 6 hours a day | H43: n/a
A44: ID0045 | B44: 90000 | C44: USD | D44: 90000 | E44: Misc. | F44: USA | G44: 1 or 2 hours a day | H44: n/a
A45: ID0046 | B45: 800000 | C45: INR | D45: 14246.33335 | E45: Manager | F45: India | G45: 2 to 3 hours per day | H45: n/a
A46: ID0047 | B46: 32000 | C46: GBP | D46: 50437.70471 | E46: Analyst | F46: UK | G46: 4 to 6 hours a day | H46: n/a
A47: ID0048 | B47: 12000 | C47: USD | D47: 12000 | E47: Consultant | F47: USA | G47: 1 or 2 hours a day | H47: n/a
A48: ID0049 | B48: 45000 | C48: EUR | D48: 57167.97475 | E48: Manager | F48: Netherlands | G48: 4 to 6 hours a day | H48: n/a
A49: ID0050 | B49: 100000 | C49: USD | D49: 100000 | E49: Analyst | F49: Germany | G49: All the 8 hours baby, all the 8! | H49: n/a
A50: ID0051 | B50: 57000 | C50: USD | D50: 57000 | E50: Accountant | F50: USA | G50: 2 to 3 hours per day | H50: n/a
A51: ID0052 | B51: 40000 | C51: GBP | D51: 63047.13088 | E51: Accountant | F51: UK | G51: 4 to 6 hours a day | H51: n/a
A52: ID0053 | B52: 24000 | C52: EUR | D52: 30489.58654 | E52: Manager | F52: Germany | G52: All the 8 hours baby, all the 8! | H52: n/a
A53: ID0054 | B53: 4320 | C53: USD | D53: 4320 | E53: Accountant | F53: India | G53: 2 to 3 hours per day | H53: n/a
A54: ID0055 | B54: 62000 | C54: USD | D54: 62000 | E54: Analyst | F54: USA | G54: 4 to 6 hours a day | H54: n/a
A55: ID0056 | B55: 7500 | C55: USD | D55: 7500 | E55: Analyst | F55: India | G55: 4 to 6 hours a day | H55: n/a
A56: ID0057 | B56: 18000 | C56: GBP | D56: 28371.2089 | E56: Manager | F56: UK | G56: 1 or 2 hours a day | H56: n/a
A57: ID0058 | B57: 49000 | C57: EUR | D57: 62249.57251 | E57: Manager | F57: France | G57: 2 to 3 hours per day | H57: n/a
A58: ID0059 | B58: 38000 | C58: USD | D58: 38000 | E58: Analyst | F58: USA | G58: 4 to 6 hours a day | H58: n/a
A59: ID0060 | B59: 41000 | C59: USD | D59: 41000 | E59: Specialist | F59: USA | G59: 4 to 6 hours a day | H59: n/a
A60: ID0061 | B60: 68000 | C60: USD | D60: 68000 | E60: Analyst | F60: USA | G60: All the 8 hours baby, all the 8! | H60: n/a
A61: ID0062 | B61: 56000 | C61: CAD | D61: 55068.24529 | E61: Analyst | F61: Canada | G61: All the 8 hours baby, all the 8! | H61: n/a
A62: ID0063 | B62: 61000 | C62: USD | D62: 61000 | E62: Manager | F62: Brasil | G62: All the 8 hours baby, all the 8! | H62: n/a
A63: ID0064 | B63: 43000 | C63: EUR | D63: 54627.17588 | E63: Consultant | F63: France | G63: 4 to 6 hours a day | H63: n/a
A64: ID0065 | B64: 85000 | C64: USD | D64: 85000 | E64: Manager | F64: USA | G64: 4 to 6 hours a day | H64: n/a
A65: ID0066 | B65: 38000 | C65: EUR | D65: 48275.17868 | E65: Analyst | F65: Netherlands | G65: 1 or 2 hours a day | H65: n/a
A66: ID0067 | B66: 85000 | C66: AUD | D66: 86692.32079 | E66: CXO or Top Mgmt. | F66: Australia | G66: 4 to 6 hours a day | H66: n/a
A67: ID0068 | B67: 85087 | C67: USD | D67: 85087 | E67: Analyst | F67: USA | G67: 2 to 3 hours per day | H67: n/a
A68: ID0069 | B68: 50000 | C68: USD | D68: 50000 | E68: Analyst | F68: USA | G68: All the 8 hours baby, all the 8! | H68: n/a
A69: ID0070 | B69: 100000 | C69: USD | D69: 100000 | E69: Manager | F69: South Africa | G69: 4 to 6 hours a day | H69: n/a
A70: ID0071 | B70: 57000 | C70: USD | D70: 57000 | E70: Analyst | F70: USA | G70: 4 to 6 hours a day | H70: n/a
A71: ID0072 | B71: 75000 | C71: USD | D71: 75000 | E71: Manager | F71: USA | G71: All the 8 hours baby, all the 8! | H71: n/a
A72: ID0073 | B72: 100000 | C72: AUD | D72: 101990.9656 | E72: Manager | F72: Australia | G72: 4 to 6 hours a day | H72: n/a
A73: ID0074 | B73: 33420 | C73: USD | D73: 33420 | E73: Manager | F73: UAE | G73: All the 8 hours baby, all the 8! | H73: n/a
A74: ID0075 | B74: 59450 | C74: CAD | D74: 58460.84254 | E74: Specialist | F74: Canada | G74: All the 8 hours baby, all the 8! | H74: n/a
A75: ID0076 | B75: 15000 | C75: USD | D75: 15000 | E75: Consultant | F75: USA | G75: All the 8 hours baby, all the 8! | H75: n/a
A76: ID0077 | B76: 60000 | C76: USD | D76: 60000 | E76: Analyst | F76: Canada | G76: 1 or 2 hours a day | H76: n/a
A77: ID0078 | B77: 100000 | C77: GBP | D77: 157617.8272 | E77: Analyst | F77: UK | G77: 2 to 3 hours per day | H77: n/a
A78: ID0079 | B78: 18000 | C78: USD | D78: 18000 | E78: Analyst | F78: Saudi Arabia | G78: All the 8 hours baby, all the 8! | H78: n/a
A79: ID0080 | B79: 50000 | C79: USD | D79: 50000 | E79: Manager | F79: USA | G79: 2 to 3 hours per day | H79: n/a
A80: ID0081 | B80: 26000 | C80: USD | D80: 26000 | E80: Analyst | F80: Panama | G80: All the 8 hours baby, all the 8! | H80: n/a
A81: ID0082 | B81: 30000 | C81: GBP | D81: 47285.34816 | E81: Manager | F81: UK | G81: 4 to 6 hours a day | H81: n/a
A82: ID0083 | B82: 150000 | C82: USD | D82: 150000 | E82: CXO or Top Mgmt. | F82: USA | G82: All the 8 hours baby, all the 8! | H82: n/a
A83: ID0084 | B83: 120000 | C83: USD | D83: 120000 | E83: Manager | F83: USA | G83: 4 to 6 hours a day | H83: n/a
A84: ID0085 | B84: 500000 | C84: INR | D84: 8903.958344 | E84: Consultant | F84: India | G84: All the 8 hours baby, all the 8! | H84: n/a
A85: ID0086 | B85: 31330 | C85: USD | D85: 31330 | E85: Analyst | F85: Brazil | G85: All the 8 hours baby, all the 8! | H85: n/a
A86: ID0087 | B86: 110000 | C86: USD | D86: 110000 | E86: Engineer | F86: USA | G86: 2 to 3 hours per day | H86: n/a
A87: ID0088 | B87: 81000 | C87: USD | D87: 81000 | E87: Consultant | F87: UK | G87: 4 to 6 hours a day | H87: n/a
A88: ID0089 | B88: 40000 | C88: USD | D88: 40000 | E88: Analyst | F88: USA | G88: 4 to 6 hours a day | H88: n/a
A89: ID0090 | B89: 42000 | C89: CAD | D89: 41301.18397 | E89: Analyst | F89: Canada | G89: 4 to 6 hours a day | H89: n/a
A90: ID0091 | B90: 125000 | C90: USD | D90: 125000 | E90: CXO or Top Mgmt. | F90: USA | G90: 4 to 6 hours a day | H90: n/a
A91: ID0092 | B91: 36000 | C91: USD | D91: 36000 | E91: Manager | F91: USA | G91: 2 to 3 hours per day | H91: n/a
A92: ID0093 | B92: 144000 | C92: INR | D92: 2564.340003 | E92: Consultant | F92: India | G92: 1 or 2 hours a day | H92: n/a
A93: ID0094 | B93: 75000 | C93: USD | D93: 75000 | E93: Analyst | F93: USA | G93: 1 or 2 hours a day | H93: n/a
A94: ID0095 | B94: 95000 | C94: USD | D94: 95000 | E94: CXO or Top Mgmt. | F94: USA | G94: 4 to 6 hours a day | H94: n/a
A95: ID0096 | B95: 24000 | C95: USD | D95: 24000 | E95: Manager | F95: USA | G95: 2 to 3 hours per day | H95: n/a
A96: ID0097 | B96: 91000 | C96: USD | D96: 91000 | E96: Manager | F96: USA | G96: 1 or 2 hours a day | H96: n/a
A97: ID0098 | B97: 40000 | C97: USD | D97: 40000 | E97: Analyst | F97: USA | G97: 4 to 6 hours a day | H97: n/a
A98: ID0099 | B98: 57000 | C98: USD | D98: 57000 | E98: Manager | F98: USA | G98: 4 to 6 hours a day | H98: n/a
A99: ID0100 | B99: 74000 | C99: USD | D99: 74000 | E99: Consultant | F99: USA | G99: 4 to 6 hours a day | H99: n/a
A100: ID0101 | B100: 80000 | C100: USD | D100: 80000 | E100: Analyst | F100: USA | G100: 4 to 6 hours a day | H100: n/a
A101: ID0102 | B101: 90000 | C101: USD | D101: 90000 | E101: Specialist | F101: USA | G101: 4 to 6 hours a day | H101: n/a
A102: ID0103 | B102: 21000 | C102: USD | D102: 21000 | E102: Analyst | F102: arabian Gulf | G102: 1 or 2 hours a day | H102: n/a
A103: ID0104 | B103: 52000 | C103: USD | D103: 52000 | E103: Manager | F103: USA | G103: 4 to 6 hours a day | H103: n/a
A104: ID0105 | B104: 19200 | C104: USD | D104: 19200 | E104: Analyst | F104: Mexico | G104: 4 to 6 hours a day | H104: n/a
A105: ID0106 | B105: 36000 | C105: USD | D105: 36000 | E105: Analyst | F105: USA | G105: 4 to 6 hours a day | H105: n/a
A106: ID0107 | B106: 57400 | C106: USD | D106: 57400 | E106: Analyst | F106: USA | G106: 4 to 6 hours a day | H106: n/a
A107: ID0108 | B107: 66000 | C107: USD | D107: 66000 | E107: Analyst | F107: USA | G107: 2 to 3 hours per day | H107: n/a
A108: ID0109 | B108: 35000 | C108: EUR | D108: 44463.98036 | E108: Manager | F108: Greece | G108: 4 to 6 hours a day | H108: n/a
A109: ID0111 | B109: 85000 | C109: USD | D109: 85000 | E109: Analyst | F109: USA | G109: 4 to 6 hours a day | H109: n/a
A110: ID0112 | B110: 50000 | C110: USD | D110: 50000 | E110: Specialist | F110: USA | G110: 4 to 6 hours a day | H110: n/a
A111: ID0113 | B111: 58000 | C111: USD | D111: 58000 | E111: Manager | F111: USA | G111: 4 to 6 hours a day | H111: n/a
A112: ID0114 | B112: 37900 | C112: USD | D112: 37900 | E112: Accountant | F112: USA | G112: All the 8 hours baby, all the 8! | H112: n/a
A113: ID0115 | B113: 48000 | C113: USD | D113: 48000 | E113: Manager | F113: UAE | G113: 2 to 3 hours per day | H113: n/a
A114: ID0116 | B114: 67000 | C114: USD | D114: 67000 | E114: Analyst | F114: USA | G114: 4 to 6 hours a day | H114: n/a
A115: ID0117 | B115: 85000 | C115: USD | D115: 85000 | E115: Controller | F115: UAE | G115: 4 to 6 hours a day | H115: n/a
A116: ID0118 | B116: 56160 | C116: USD | D116: 56160 | E116: Analyst | F116: USA | G116: 4 to 6 hours a day | H116: n/a
A117: ID0119 | B117: 24000 | C117: USD | D117: 24000 | E117: Manager | F117: Colombia | G117: All the 8 hours baby, all the 8! | H117: n/a
A118: ID0120 | B118: 52000 | C118: USD | D118: 52000 | E118: Analyst | F118: USA | G118: Excel ?!? What Excel? | H118: n/a
A119: ID0121 | B119: 60000 | C119: CAD | D119: 59001.69138 | E119: Analyst | F119: Canada | G119: Excel ?!? What Excel? | H119: n/a
A120: ID0122 | B120: 70000 | C120: USD | D120: 70000 | E120: Accountant | F120: USA | G120: All the 8 hours baby, all the 8! | H120: n/a
A121: ID0123 | B121: 50000 | C121: USD | D121: 50000 | E121: Specialist | F121: USA | G121: 4 to 6 hours a day | H121: n/a
A122: ID0124 | B122: 2300000 | C122: INR | D122: 40958.20838 | E122: Analyst | F122: India | G122: 1 or 2 hours a day | H122: n/a
A123: ID0125 | B123: 80000 | C123: USD | D123: 80000 | E123: Analyst | F123: USA | G123: 4 to 6 hours a day | H123: n/a
A124: ID0126 | B124: 128000 | C124: USD | D124: 128000 | E124: Manager | F124: USA | G124: All the 8 hours baby, all the 8! | H124: n/a
A125: ID0127 | B125: 44000 | C125: USD | D125: 44000 | E125: Manager | F125: USA | G125: 1 or 2 hours a day | H125: n/a
A126: ID0128 | B126: 65000 | C126: USD | D126: 65000 | E126: Accountant | F126: USA | G126: All the 8 hours baby, all the 8! | H126: n/a
A127: ID0129 | B127: 36000 | C127: USD | D127: 36000 | E127: Accountant | F127: Turkey | G127: 4 to 6 hours a day | H127: n/a
A128: ID0130 | B128: 12000 | C128: USD | D128: 12000 | E128: Consultant | F128: Pakistan | G128: 1 or 2 hours a day | H128: n/a
A129: ID0131 | B129: 28159 | C129: GBP | D129: 44383.60396 | E129: Analyst | F129: UK | G129: All the 8 hours baby, all the 8! | H129: n/a
A130: ID0132 | B130: 45000 | C130: USD | D130: 45000 | E130: Analyst | F130: USA | G130: 4 to 6 hours a day | H130: n/a
A131: ID0133 | B131: 54000 | C131: USD | D131: 54000 | E131: Analyst | F131: USA | G131: 2 to 3 hours per day | H131: n/a
A132: ID0134 | B132: 70000 | C132: GBP | D132: 110332.479 | E132: Manager | F132: UK | G132: 2 to 3 hours per day | H132: n/a
A133: ID0135 | B133: 71000 | C133: USD | D133: 71000 | E133: Analyst | F133: USA | G133: 4 to 6 hours a day | H133: n/a
A134: ID0136 | B134: 800000 | C134: INR | D134: 14246.33335 | E134: Manager | F134: India | G134: 2 to 3 hours per day | H134: n/a
A135: ID0137 | B135: 70000 | C135: CAD | D135: 68835.30661 | E135: Manager | F135: Canada | G135: 4 to 6 hours a day | H135: n/a
A136: ID0138 | B136: 50000 | C136: CAD | D136: 49168.07615 | E136: Manager | F136: Canada | G136: 4 to 6 hours a day | H136: n/a
A137: ID0139 | B137: 40000 | C137: USD | D137: 40000 | E137: Analyst | F137: USA | G137: 4 to 6 hours a day | H137: n/a
A138: ID0140 | B138: 62000 | C138: CAD | D138: 60968.41443 | E138: Analyst | F138: Canada | G138: 2 to 3 hours per day | H138: n/a
A139: ID0141 | B139: 336000 | C139: INR | D139: 5983.460007 | E139: Reporting | F139: India | G139: 4 to 6 hours a day | H139: n/a
A140: ID0142 | B140: 53000 | C140: USD | D140: 53000 | E140: Analyst | F140: USA | G140: 4 to 6 hours a day | H140: n/a
A141: ID0143 | B141: 104000 | C141: USD | D141: 104000 | E141: CXO or Top Mgmt. | F141: USA | G141: 2 to 3 hours per day | H141: n/a
A142: ID0144 | B142: 57000 | C142: USD | D142: 57000 | E142: Engineer | F142: USA | G142: 4 to 6 hours a day | H142: n/a
A143: ID0145 | B143: 45000 | C143: USD | D143: 45000 | E143: Analyst | F143: USA | G143: 2 to 3 hours per day | H143: n/a
A144: ID0146 | B144: 92000 | C144: USD | D144: 92000 | E144: Analyst | F144: USA | G144: 4 to 6 hours a day | H144: n/a
A145: ID0147 | B145: 88000 | C145: USD | D145: 88000 | E145: Manager | F145: USA | G145: 4 to 6 hours a day | H145: n/a
A146: ID0148 | B146: 80000 | C146: USD | D146: 80000 | E146: Analyst | F146: USA | G146: 2 to 3 hours per day | H146: n/a
A147: ID0149 | B147: 69000 | C147: USD | D147: 69000 | E147: Consultant | F147: USA | G147: 4 to 6 hours a day | H147: n/a
A148: ID0150 | B148: 50000 | C148: USD | D148: 50000 | E148: Analyst | F148: Mexico | G148: All the 8 hours baby, all the 8! | H148: n/a
A149: ID0151 | B149: 35000 | C149: USD | D149: 35000 | E149: Manager | F149: USA | G149: 2 to 3 hours per day | H149: n/a
A150: ID0152 | B150: 96000 | C150: USD | D150: 96000 | E150: Analyst | F150: USA | G150: 4 to 6 hours a day | H150: n/a
A151: ID0153 | B151: 65000 | C151: USD | D151: 65000 | E151: Accountant | F151: USA | G151: All the 8 hours baby, all the 8! | H151: n/a
A152: ID0154 | B152: 37440 | C152: USD | D152: 37440 | E152: Analyst | F152: USA | G152: All the 8 hours baby, all the 8! | H152: n/a
A153: ID0155 | B153: 15500 | C153: USD | D153: 15500 | E153: Accountant | F153: Mexico | G153: All the 8 hours baby, all the 8! | H153: n/a
A154: ID0156 | B154: 90000 | C154: USD | D154: 90000 | E154: Analyst | F154: USA | G154: 2 to 3 hours per day | H154: n/a
A155: ID0157 | B155: 66500 | C155: USD | D155: 66500 | E155: Analyst | F155: USA | G155: All the 8 hours baby, all the 8! | H155: n/a
A156: ID0158 | B156: 100000 | C156: USD | D156: 100000 | E156: Accountant | F156: USA | G156: All the 8 hours baby, all the 8! | H156: n/a
A157: ID0159 | B157: 32250 | C157: GBP | D157: 50831.74927 | E157: Manager | F157: UK | G157: 4 to 6 hours a day | H157: n/a
A158: ID0160 | B158: 420000 | C158: INR | D158: 7479.325009 | E158: Manager | F158: India | G158: 1 or 2 hours a day | H158: n/a
A159: ID0161 | B159: 75000 | C159: USD | D159: 75000 | E159: Analyst | F159: USA | G159: 1 or 2 hours a day | H159: n/a
A160: ID0162 | B160: 58000 | C160: USD | D160: 58000 | E160: Manager | F160: Canada | G160: 1 or 2 hours a day | H160: n/a
A161: ID0163 | B161: 55000 | C161: USD | D161: 55000 | E161: Manager | F161: USA | G161: 2 to 3 hours per day | H161: n/a
A162: ID0164 | B162: 60000 | C162: USD | D162: 60000 | E162: Analyst | F162: USA | G162: 4 to 6 hours a day | H162: n/a
A163: ID0165 | B163: 1300000 | C163: INR | D163: 23150.29169 | E163: Manager | F163: India | G163: 4 to 6 hours a day | H163: n/a
A164: ID0166 | B164: 107000 | C164: CAD | D164: 105219.683 | E164: Manager | F164: Canada | G164: 2 to 3 hours per day | H164: n/a
A165: ID0167 | B165: 145000 | C165: USD | D165: 145000 | E165: Controller | F165: Switzerland | G165: All the 8 hours baby, all the 8! | H165: n/a
A166: ID0168 | B166: 22880 | C166: USD | D166: 22880 | E166: Accountant | F166: USA | G166: 4 to 6 hours a day | H166: n/a
A167: ID0169 | B167: 80000 | C167: USD | D167: 80000 | E167: Consultant | F167: USA | G167: 4 to 6 hours a day | H167: n/a
A168: ID0170 | B168: 500000 | C168: INR | D168: 8903.958344 | E168: Analyst | F168: India | G168: 2 to 3 hours per day | H168: n/a
A169: ID0171 | B169: 90000 | C169: CAD | D169: 88502.53707 | E169: Analyst | F169: Canada | G169: 4 to 6 hours a day | H169: n/a
A170: ID0172 | B170: 180000 | C170: INR | D170: 3205.425004 | E170: Analyst | F170: India | G170: 4 to 6 hours a day | H170: n/a
A171: ID0173 | B171: 46584 | C171: USD | D171: 46584 | E171: Analyst | F171: USA | G171: 4 to 6 hours a day | H171: n/a
A172: ID0174 | B172: 67000 | C172: USD | D172: 67000 | E172: Analyst | F172: USA | G172: 4 to 6 hours a day | H172: n/a
A173: ID0175 | B173: 1100000 | C173: INR | D173: 19588.70836 | E173: Manager | F173: India | G173: 4 to 6 hours a day | H173: n/a
A174: ID0176 | B174: 92000 | C174: USD | D174: 92000 | E174: Engineer | F174: USA | G174: 4 to 6 hours a day | H174: n/a
A175: ID0177 | B175: 75000 | C175: USD | D175: 75000 | E175: Specialist | F175: USA | G175: All the 8 hours baby, all the 8! | H175: n/a
A176: ID0178 | B176: 180000 | C176: INR | D176: 3205.425004 | E176: Analyst | F176: India | G176: 4 to 6 hours a day | H176: n/a
A177: ID0179 | B177: 18500 | C177: GBP | D177: 29159.29803 | E177: Manager | F177: UK | G177: All the 8 hours baby, all the 8! | H177: n/a
A178: ID0180 | B178: 40000 | C178: USD | D178: 40000 | E178: Analyst | F178: USA | G178: All the 8 hours baby, all the 8! | H178: n/a
A179: ID0181 | B179: 111680 | C179: USD | D179: 111680 | E179: Analyst | F179: USA | G179: 2 to 3 hours per day | H179: n/a
A180: ID0182 | B180: 41406 | C180: USD | D180: 41406 | E180: Analyst | F180: Canada | G180: 1 or 2 hours a day | H180: n/a
A181: ID0183 | B181: 70000 | C181: USD | D181: 70000 | E181: Manager | F181: USA | G181: 4 to 6 hours a day | H181: n/a
A182: ID0184 | B182: 40700 | C182: USD | D182: 40700 | E182: Analyst | F182: USA | G182: 1 or 2 hours a day | H182: n/a
A183: ID0185 | B183: 40000 | C183: USD | D183: 40000 | E183: Analyst | F183: USA | G183: 4 to 6 hours a day | H183: n/a
A184: ID0186 | B184: 60000 | C184: USD | D184: 60000 | E184: Accountant | F184: USA | G184: 4 to 6 hours a day | H184: n/a
A185: ID0187 | B185: 92000 | C185: CAD | D185: 90469.26012 | E185: Consultant | F185: Canada | G185: All the 8 hours baby, all the 8! | H185: n/a
A186: ID0188 | B186: 13636 | C186: USD | D186: 13636 | E186: Manager | F186: India | G186: All the 8 hours baby, all the 8! | H186: n/a
A187: ID0189 | B187: 80000 | C187: USD | D187: 80000 | E187: Manager | F187: USA | G187: 2 to 3 hours per day | H187: n/a
A188: ID0190 | B188: 60000 | C188: CAD | D188: 59001.69138 | E188: Analyst | F188: Canada | G188: 2 to 3 hours per day | H188: n/a
A189: ID0192 | B189: 28000 | C189: USD | D189: 28000 | E189: Analyst | F189: USA | G189: 4 to 6 hours a day | H189: n/a
A190: ID0193 | B190: 60000 | C190: USD | D190: 60000 | E190: Analyst | F190: USA | G190: 4 to 6 hours a day | H190: n/a
A191: ID0194 | B191: 96000 | C191: USD | D191: 96000 | E191: Specialist | F191: USA | G191: 2 to 3 hours per day | H191: n/a
A192: ID0195 | B192: 67000 | C192: USD | D192: 67000 | E192: Analyst | F192: USA | G192: 4 to 6 hours a day | H192: n/a
A193: ID0196 | B193: 70000 | C193: USD | D193: 70000 | E193: Analyst | F193: USA | G193: 4 to 6 hours a day | H193: n/a
A194: ID0197 | B194: 233000 | C194: INR | D194: 4149.244588 | E194: Manager | F194: India | G194: All the 8 hours baby, all the 8! | H194: n/a
A195: ID0198 | B195: 99000 | C195: USD | D195: 99000 | E195: Controller | F195: USA | G195: 4 to 6 hours a day | H195: n/a
A196: ID0200 | B196: 90000 | C196: USD | D196: 90000 | E196: Manager | F196: USA | G196: 2 to 3 hours per day | H196: n/a
A197: ID0201 | B197: 275000 | C197: INR | D197: 4897.177089 | E197: Analyst | F197: India | G197: 2 to 3 hours per day | H197: n/a
A198: ID0202 | B198: 192000 | C198: INR | D198: 3419.120004 | E198: Analyst | F198: India | G198: All the 8 hours baby, all the 8! | H198: n/a
A199: ID0203 | B199: 51000 | C199: USD | D199: 51000 | E199: Manager | F199: USA | G199: 4 to 6 hours a day | H199: n/a
A200: ID0204 | B200: 100000 | C200: USD | D200: 100000 | E200: Manager | F200: USA | G200: All the 8 hours baby, all the 8! | H200: n/a
... 1684 more rows
